Workbook

Sheet Terms
D4: FARI TERMS OF USE

Sheet ReadMe
B2: Authors | D2: Oana Luca, Diego Mesa Puyo, Nate Vernon
B3: Contact authors | D3: oluca@imf.org, dmesapuyo@imf.org, nvernon@img.org
B4: Owner | D4: © IMF Fiscal Affairs Department. All rights reserved
B6: Overall model check | D6: =AND(C10:C11) -> TRUE
B8: Navigation
B9: Sheets | C9: Checks | E9: Location | G9: Sheet | H9: Sheet
B10: Petroleum model | C10: ='Petroleum model'!C1 -> TRUE | E10: Fiscal Regime Assumptions | G10: Petroleum | H10: Mining
B11: Mining model | C11: ='Mining model'!C1 -> TRUE | E11: Project Data | G11: Petroleum | H11: Mining
E12: Results - Project Life | G12: Petroleum | H12: Mining
E13: Results - Annual | G13: Petroleum | H13: Mining
E14: Sensitivities | G14: Petroleum | H14: Mining
E15: Breakeven price | G15: Petroleum | H15: Mining
B17: QUICK USER GUIDE: this set of instructions is inteded as a brief step-by-step explanation of how the model is set up, and how to operate it. This model is accompanied by a technical note and manual, which should be read before using the model.

Sheet Petroleum model
A1: ReadMe Sheet | C1: =AND(A:A) -> TRUE | E1: year | G1: 1 | H1: =G1+1 -> 2 | I1: =H1+1 -> 3 | J1: 4 | K1: 5 | L1: 6 | M1: 7 | N1: 8 | O1: 9 | P1: 10 | Q1: 11 | R1: 12 | S1: 13
A3: INPUTS
D5: Fiscal Regime Assumptions
D6: Regime name | F6: =INDEX(H6:L6,$F$7) -> DROP | H6: DROP | I6: Rfactor | J6: Royalty + CIT | K6: Alt1 | L6: Alt2 | N6: SNAPSHOT RESULTS
D7: Select regime number | F7: 1 | H7: 1 | I7: =H7+1 -> 2 | J7: =I7+1 -> 3 | K7: 4 | L7: 5
D8: Bonus | N8: NPV results
D9: Production bonus (start of production) | E9: $mm | F9: =INDEX(H9:L9,$F$7) -> 50 | H9: 50 | I9: 50 | J9: 50 | R9: =G435 -> 0 | S9: =H435 -> 0.1 | T9: 0.125 | U9: 0.15
D10: Royalty rate | E10: % | F10: =INDEX(H10:L10,$F$7) -> 0 | H10: 0 | I10: 0 | J10: 0.15
D11: Royalty base (net/gross) | E11: switch | F11: net | H11: net | I11: net | J11: net | N11: Project pre-tax cash flow | Q11: $mm const | R11: =G436 -> 2119.576032 | S11: =H436 -> 1021.009974 | T11: 841.6209354 | U11: 687.9478999
D12: Decommissioning provision (yes/no) | E12: switch | F12: yes | H12: yes | I12: yes | J12: yes | N12: Total benefits | Q12: $mm const | R12: =G441 -> 2869.576032 | S12: =H441 -> 1725.555429 | T12: 1536.06538 | U12: 1372.730509
D13: Commencement of decommissioning provision | E13: % depletion | F13: 0.6 | H13: 0.6 | I13: 0.6 | J13: 0.6 | N13: Contractor NPV | Q13: $mm const | R13: =G438 -> 620.5211218 | S13: =H438 -> 192.1318226 | T13: 125.4113699 | U13: 69.0578714
D14: Cost Recovery | N14: Government NPV | Q14: $mm const | R14: =G437 -> 1499.40077 | S14: =H437 -> 854.069588 | T14: 751.1809225 | U14: 663.5151019
D15: Cost recovery ceiling | E15: % | F15: 0.8 | H15: 0.8 | I15: 0.8 | J15: 1 | N15: Average Effective Tax Rate (AETR) | Q15: $mm const | R15: =R14/R11 -> 0.7074059848 | S15: =S14/S11 -> 0.8364948529 | T15: =T14/T11 -> 0.8925406806 | U15: =U14/U11 -> 0.9644845228
D16: Development and replacement capital cost depreciation period | E16: years | F16: 5 | H16: 5 | I16: 5 | N16: Govt. share of total benefits | Q16: $mm const | R16: =R14/R12 -> 0.522516481 | S16: =S14/S12 -> 0.4949534358 | T16: =T14/T12 -> 0.4890292642 | U16: =U14/U12 -> 0.4833542329
D17: Investment uplift (yes/no) | E17: switch | F17: no | H17: no | I17: yes | J17: no
D18: Investment uplift | E18: % | F18: 0 | I18: 0.15 | N18: Real terms results
D19: Uplift limit | E19: years | F19: 10 | H19: 10 | I19: 10 | N19: METR | Q19: =INDEX($I$609:$I$613,F7,) -> 0.5861860275
D20: Profit petroleum sharing | E20: switch | F20: DROP | H20: DROP | I20: Rfactor | J20: Tax/Royalty | N20: Pre-tax IRR | Q20: =C84 -> 0.3545746242
D21: DROP tiers | N21: Hurdle rate | Q21: =F52 -> 0.125
D22: Profit petroleum tier 1 | E22: Mbpd | F22: =INDEX(H22:L22,$F$7) -> 15 | H22: 15 | N22: Post-tax IRR on total funds | Q22: =C433 -> 0.1532036447
D23: Profit petroleum tier 2 | E23: Mbpd | F23: =INDEX(H23:L23,$F$7) -> 30 | H23: 30 | N23: Difference | Q23: =Q21-Q22 -> -0.02820364465
D24: Profit petroleum tier 3 | E24: Mbpd | F24: =INDEX(H24:L24,$F$7) -> 45 | H24: 45 | N24: Breakeven price | Q24: =INDEX($G$609:$G$613,F7,) -> 56.53484768
D25: Profit petroleum tier 4 | E25: Mbpd | F25: =INDEX(H25:L25,$F$7) -> 60 | H25: 60
D26: R-Factor tiers
D27: R factor tier 1 | E27: R-factor | F27: =INDEX(H27:L27,$F$7) -> 0 | I27: 1
D28: R factor tier 2 | E28: R-factor | F28: =INDEX(H28:L28,$F$7) -> 0 | I28: 1.5
D29: R factor tier 3 | E29: R-factor | F29: =INDEX(H29:L29,$F$7) -> 0 | I29: 2
D30: R factor tier 4 | E30: R-factor | F30: =INDEX(H30:L30,$F$7) -> 0 | I30: 2.5
D31: Govt. share profit petroleum
D32: Govt. share tier 1 | E32: % | F32: =INDEX(H32:L32,$F$7) -> 0.4 | H32: 0.4 | I32: 0.4
D33: Govt. share tier 2 | E33: % | F33: 0.5 | H33: 0.5 | I33: 0.5
D34: Govt. share tier 3 | E34: % | F34: 0.6 | H34: 0.6 | I34: 0.6
D35: Govt. share tier 4 | E35: % | F35: 0.65 | H35: 0.65 | I35: 0.65
D36: Govt. share tier 5 | E36: % | F36: 0.75 | H36: 0.75 | I36: 0.75
D37: Corporate Income Tax rate | E37: % | F37: 0.2 | H37: 0.2 | I37: 0.2 | J37: 0.3
D38: Exploration costs (expensing) | E38: switch | F38: deferred | H38: deferred | I38: deferred | J38: deferred
D39: Development costs (depreciation) | E39: switch | F39: deferred | H39: deferred | I39: deferred | J39: deferred
D40: Development costs and replacement capital depreciation (years) | E40: years | F40: 10 | H40: 10 | I40: 5 | J40: 5
D41: Dividend Withholding Tax | E41: % | F41: 0.05 | H41: 0.05 | I41: 0.05 | J41: 0.05
D42: State owned company (SOC) participation in joint venture | E42: % | F42: 0.1 | H42: 0.1 | I42: 0.1 | J42: 0.1
D43: Participation from development or production | E43: switch | F43: development | H43: development | I43: development | J43: development
D45: Financing assumptions
D46: Percent of development costs borrowed | E46: % | F46: 0.7
D47: Repayment period (beginning production) | E47: years | F47: 5
D48: Real interest rate | E48: % | F48: 0.05
D50: Economic assumptions
D51: Discount rate government | E51: % | F51: 0.1
D52: Discount rate contractor | E52: % | F52: 0.125
D53: Inflation rate | E53: % | F53: 0.02
D54: Production days per year | E54: days | F54: 365
D55: Oil price | E55: US $/bbl | F55: 60
D57: PETROLEUM PROJECT
C58: Total | D58: Raw Project Data | E58: year | G58: 1 | H58: 2 | I58: 3 | J58: 4 | K58: 5 | L58: 6 | M58: 7 | N58: 8 | O58: 9 | P58: 10 | Q58: 11 | R58: 12 | S58: 13
D59: Oil production | E59: Mbpd | G59: 0 | H59: 0 | I59: 10 | J59: 25 | K59: 75 | L59: =K59*0.8 -> 60 | M59: 48 | N59: 38.4 | O59: 30.72 | P59: 24.576 | Q59: 19.6608 | R59: 0 | S59: 0
C60: =SUM(G60:S60) -> 120.945232 | D60: Oil production | E60: MMBbl | G60: =G59*$F$54/1000 -> 0 | H60: 0 | I60: 3.65 | J60: 9.125 | K60: 27.375 | L60: 21.9 | M60: 17.52 | N60: 14.016 | O60: 11.2128 | P60: 8.97024 | Q60: 7.176192 | R60: 0 | S60: 0
C61: =SUM(G61:S61) -> 483.780928 | D61: Transport costs post-fiscal point | E61: $mm const | G61: =G60*4 -> 0 | H61: =H60*4 -> 0 | I61: 14.6 | J61: 36.5 | K61: 109.5 | L61: 87.6 | M61: 70.08 | N61: 56.064 | O61: 44.8512 | P61: 35.88096 | Q61: 28.704768 | R61: 0 | S61: 0
C62: =SUM(G62:S62) -> 250 | D62: Exploration costs (expensed) | E62: $mm const | G62: 250 | H62: 0 | I62: 0 | J62: 0 | K62: 0 | L62: 0 | M62: 0 | N62: 0 | O62: 0 | P62: 0 | Q62: 0 | R62: 0 | S62: 0
C63: 500 | D63: Development costs (depreciable) | E63: $mm const | G63: 0 | H63: 500 | I63: 0 | J63: 0 | K63: 0 | L63: 0 | M63: 0 | N63: 0 | O63: 0 | P63: 0 | Q63: 0 | R63: 0 | S63: 0
C64: 75 | D64: Replacement capital costs (depreciable) | E64: $mm const | G64: 0 | H64: 0 | I64: 15 | J64: 15 | K64: 15 | L64: 15 | M64: 15 | N64: 0 | O64: 0 | P64: 0 | Q64: 0 | R64: 0 | S64: 0
C65: 3628.35696 | D65: Operating costs | E65: $mm const | G65: 0 | H65: 0 | I65: 109.5 | J65: 273.75 | K65: 821.25 | L65: 657 | M65: 525.6 | N65: 420.48 | O65: 336.384 | P65: 269.1072 | Q65: 215.28576 | R65: 0 | S65: 0
C66: 200 | D66: Decommissioning costs | E66: $mm const | G66: 0 | H66: 0 | I66: 0 | J66: 0 | K66: 0 | L66: 0 | M66: 0 | N66: 0 | O66: 0 | P66: 0 | Q66: 0 | R66: 200 | S66: 0
D68: Price assumptions
D69: Oil sales price | E69: $/bbl const | G69: =$F$55 -> 60 | H69: =$F$55 -> 60 | I69: 60 | J69: 60 | K69: 60 | L69: 60 | M69: 60 | N69: 60 | O69: 60 | P69: 60 | Q69: 60 | R69: 60 | S69: 60
D71: Project Pre-Tax Cash Flow: Real | E71: year | G71: 1 | H71: =G71+1 -> 2 | I71: =H71+1 -> 3 | J71: 4 | K71: 5 | L71: 6 | M71: 7 | N71: 8 | O71: 9 | P71: 10 | Q71: 11 | R71: 12 | S71: 13
C72: =SUM(G72:S72) -> 120.945232 | D72: Oil production | E72: MMBbl | G72: =G60 -> 0 | H72: 0 | I72: 3.65 | J72: 9.125 | K72: 27.375 | L72: 21.9 | M72: 17.52 | N72: 14.016 | O72: 11.2128 | P72: 8.97024 | Q72: 7.176192 | R72: 0 | S72: 0
C73: =SUM(G73:S73) -> 7256.71392 | D73: Gross revenue | E73: $mm const | G73: =G72*G69 -> 0 | H73: 0 | I73: 219 | J73: 547.5 | K73: 1642.5 | L73: 1314 | M73: 1051.2 | N73: 840.96 | O73: 672.768 | P73: 538.2144 | Q73: 430.57152 | R73: 0 | S73: 0
C74: 483.780928 | D74: Transport costs post-fiscal point | E74: $mm const | G74: =G61 -> 0 | H74: =H61 -> 0 | I74: 14.6 | J74: 36.5 | K74: 109.5 | L74: 87.6 | M74: 70.08 | N74: 56.064 | O74: 44.8512 | P74: 35.88096 | Q74: 28.704768 | R74: 0 | S74: 0
A75: =ROUND(C75-(C73-C74),5)=0 -> TRUE | C75: 6772.932992 | D75: Net revenue | E75: $mm const | G75: =G73-G74 -> 0 | H75: =H73-H74 -> 0 | I75: 204.4 | J75: 511 | K75: 1533 | L75: 1226.4 | M75: 981.12 | N75: 784.896 | O75: 627.9168 | P75: 502.33344 | Q75: 401.866752 | R75: 0 | S75: 0
C76: 250 | D76: Exploration costs (expensed) | E76: $mm const | G76: =G62 -> 250 | H76: 0 | I76: 0 | J76: 0 | K76: 0 | L76: 0 | M76: 0 | N76: 0 | O76: 0 | P76: 0 | Q76: 0 | R76: 0 | S76: 0
C77: 500 | D77: Development costs (depreciable) | E77: $mm const | G77: =G63 -> 0 | H77: 500 | I77: 0 | J77: 0 | K77: 0 | L77: 0 | M77: 0 | N77: 0 | O77: 0 | P77: 0 | Q77: 0 | R77: 0 | S77: 0
C78: =SUM(G78:S78) -> 75 | D78: Replacement capital costs (depreciable) | E78: $mm const | G78: =G64 -> 0 | H78: 0 | I78: 15 | J78: 15 | K78: 15 | L78: 15 | M78: 15 | N78: 0 | O78: 0 | P78: 0 | Q78: 0 | R78: 0 | S78: 0
C79: 3628.35696 | D79: Operating costs | E79: $mm const | G79: =G65 -> 0 | H79: 0 | I79: 109.5 | J79: 273.75 | K79: 821.25 | L79: 657 | M79: 525.6 | N79: 420.48 | O79: 336.384 | P79: 269.1072 | Q79: 215.28576 | R79: 0 | S79: 0
C80: 200 | D80: Decommissioning costs | E80: $mm const | G80: 0 | H80: 0 | I80: 0 | J80: 0 | K80: 0 | L80: 0 | M80: 0 | N80: 0 | O80: 0 | P80: 0 | Q80: 0 | R80: 200 | S80: 0
C81: 4653.35696 | D81: Total costs | E81: $mm const | G81: =SUM(G76:G80) -> 250 | H81: =SUM(H76:H80) -> 500 | I81: 124.5 | J81: 288.75 | K81: 836.25 | L81: 672 | M81: 540.6 | N81: 420.48 | O81: 336.384 | P81: 269.1072 | Q81: 215.28576 | R81: 200 | S81: 0
A82: =ROUND(C82-(C75-SUM(C76:C80)),5)=0 -> TRUE | C82: 2119.576032 | D82: Project pre-tax cashflow | E82: $mm const | G82: =G75-G81 -> -250 | H82: =H75-H81 -> -500 | I82: 79.9 | J82: 222.25 | K82: 696.75 | L82: 554.4 | M82: 440.52 | N82: 364.416 | O82: 291.5328 | P82: 233.22624 | Q82: 186.580992 | R82: -200 | S82: 0
C84: =IFERROR(IRR(G82:S82),0) -> 0.3545746242 | D84: Internal rate of return (real) | E84: % | G84: =IFERROR(IRR($G82:G82),"--") -> -- | H84: =IFERROR(IRR($G82:H82),"--") -> -- | I84: =IFERROR(IRR($G82:I82),"--") -> -- | J84: =IFERROR(IRR($G82:J82),"--") -> -0.3564972153 | K84: =IFERROR(IRR($G82:K82),"--") -> 0.1023147424 | L84: =IFERROR(IRR($G82:L82),"--") -> 0.2395002934 | M84: =IFERROR(IRR($G82:M82),"--") -> 0.2990662128 | N84: =IFERROR(IRR($G82:N82),"--") -> 0.3292654963 | O84: =IFERROR(IRR($G82:O82),"--") -> 0.3450111363 | P84: =IFERROR(IRR($G82:P82),"--") -> 0.3535617325 | Q84: =IFERROR(IRR($G82:Q82),"--") -> 0.3583280754 | R84: =IFERROR(IRR($G82:R82),"--") -> 0.3545746242 | S84: =IFERROR(IRR($G82:S82),"--") -> 0.3545746242
C85: =NPV($F$51,$H$82:$S$82)+$G$82 -> 1021.009974 | D85: ="Project pre-tax cash flow NPV"&$F$51*100 -> Project pre-tax cash flow NPV10 | E85: $mm const
D87: Flags
C88: =MAX(G88:S88) -> 13 | D88: Project years | E88: years | G88: =(SUM($G$59:G66)>0)*1+F88 -> 1 | H88: =(SUM($G$59:H66)>0)*1+G88 -> 2 | I88: =(SUM($G$59:I66)>0)*1+H88 -> 3 | J88: =(SUM($G$59:J66)>0)*1+I88 -> 4 | K88: =(SUM($G$59:K66)>0)*1+J88 -> 5 | L88: =(SUM($G$59:L66)>0)*1+K88 -> 6 | M88: =(SUM($G$59:M66)>0)*1+L88 -> 7 | N88: =(SUM($G$59:N66)>0)*1+M88 -> 8 | O88: =(SUM($G$59:O66)>0)*1+N88 -> 9 | P88: =(SUM($G$59:P66)>0)*1+O88 -> 10 | Q88: =(SUM($G$59:Q66)>0)*1+P88 -> 11 | R88: =(SUM($G$59:R66)>0)*1+Q88 -> 12 | S88: =(SUM($G$59:S66)>0)*1+R88 -> 13
C89: =MAX(G89:S89) -> 9 | D89: Production years | E89: years | G89: =((G59>0)*1+F89)*(G59>0) -> 0 | H89: 0 | I89: 1 | J89: 2 | K89: 3 | L89: 4 | M89: 5 | N89: 6 | O89: 7 | P89: 8 | Q89: 9 | R89: 0 | S89: 0
C90: 9 | D90: Remaining production years | E90: years | G90: =($C$89-G89+1)*(G59>0) -> 0 | H90: 0 | I90: 9 | J90: 8 | K90: 7 | L90: 6 | M90: 5 | N90: 4 | O90: 3 | P90: 2 | Q90: 1 | R90: 0 | S90: 0
C91: 12 | D91: Development years | E91: years | G91: =1*(SUM(G$77:$G77)>0)+F91 -> 0 | H91: =1*(SUM($G$77:H77)>0)+G91 -> 1 | I91: =1*(SUM($G$77:I77)>0)+H91 -> 2 | J91: =1*(SUM($G$77:J77)>0)+I91 -> 3 | K91: =1*(SUM($G$77:K77)>0)+J91 -> 4 | L91: =1*(SUM($G$77:L77)>0)+K91 -> 5 | M91: =1*(SUM($G$77:M77)>0)+L91 -> 6 | N91: =1*(SUM($G$77:N77)>0)+M91 -> 7 | O91: =1*(SUM($G$77:O77)>0)+N91 -> 8 | P91: =1*(SUM($G$77:P77)>0)+O91 -> 9 | Q91: =1*(SUM($G$77:Q77)>0)+P91 -> 10 | R91: =1*(SUM($G$77:R77)>0)+Q91 -> 11 | S91: =1*(SUM($G$77:S77)>0)+R91 -> 12
D93: Payback period
D94: Project pre-tax cash flow | E94: $mm const | G94: =G82 -> -250 | H94: -500 | I94: 79.9 | J94: 222.25 | K94: 696.75 | L94: 554.4 | M94: 440.52 | N94: 364.416 | O94: 291.5328 | P94: 233.22624 | Q94: 186.580992 | R94: -200 | S94: 0
D95: Cumulative project pre-tax cash flow | E95: $mm const | G95: =F95+G94 -> -250 | H95: =G95+H94 -> -750 | I95: -670.1 | J95: -447.85 | K95: 248.9 | L95: 803.3 | M95: 1243.82 | N95: 1608.236 | O95: 1899.7688 | P95: 2132.99504 | Q95: 2319.576032 | R95: 2119.576032 | S95: 2119.576032
C96: =SUM(G96:S96) -> 4.642770004 | D96: Payback period | E96: years | G96: =IF(AND(G95<=0,H95>0),G88+(-G95/H94),0) -> 0 | H96: =IF(AND(H95<=0,I95>0),H88+(-H95/I94),0) -> 0 | I96: 0 | J96: 4.642770004 | K96: 0 | L96: 0 | M96: 0 | N96: 0 | O96: 0 | P96: 0 | Q96: 0 | R96: 0 | S96: 0
D98: Inflation
D99: Inflation index | E99: index | G99: =IF(G$58=1,1,(1+$F$53)^(G$58-1)) -> 1 | H99: =IF(H$58=1,1,(1+$F$53)^(H$58-1)) -> 1.02 | I99: 1.0404 | J99: 1.061208 | K99: 1.08243216 | L99: 1.104080803 | M99: 1.126162419 | N99: 1.148685668 | O99: 1.171659381 | P99: 1.195092569 | Q99: 1.21899442 | R99: 1.243374308 | S99: 1.268241795
D101: Project Pre-Tax Cash Flow: Nominal | E101: year | G101: 1 | H101: =G101+1 -> 2 | I101: =H101+1 -> 3 | J101: 4 | K101: 5 | L101: 6 | M101: 7 | N101: 8 | O101: 9 | P101: 10 | Q101: 11 | R101: 12 | S101: 13
C102: =SUM(G102:S102) -> 8143.671861 | D102: Gross revenue | E102: $mm nominal | G102: =G73*G$99 -> 0 | H102: 0 | I102: 227.8476 | J102: 581.01138 | K102: 1777.894823 | L102: 1450.762175 | M102: 1183.821935 | N102: 965.9986991 | O102: 788.2549384 | P102: 643.2160298 | Q102: 524.8642803 | R102: 0 | S102: 0
C103: =SUM(G103:S103) -> 542.9114574 | D103: Transport costs post-fiscal point | E103: $mm nominal | G103: =G74*G$99 -> 0 | H103: 0 | I103: 15.18984 | J103: 38.734092 | K103: 118.5263215 | L103: 96.71747836 | M103: 78.92146234 | N103: 64.39991327 | O103: 52.55032923 | P103: 42.88106865 | Q103: 34.99095202 | R103: 0 | S103: 0
A104: =ROUND(C104-(C102-C103),5)=0 -> TRUE | C104: 7600.760404 | D104: Net revenue | E104: $mm nominal | G104: =G75*G$99 -> 0 | H104: 0 | I104: 212.65776 | J104: 542.277288 | K104: 1659.368501 | L104: 1354.044697 | M104: 1104.900473 | N104: 901.5987858 | O104: 735.7046092 | P104: 600.3349611 | Q104: 489.8733283 | R104: 0 | S104: 0
C105: 250 | D105: Exploration costs (expensed) | E105: $mm nominal | G105: =G76*G$99 -> 250 | H105: 0 | I105: 0 | J105: 0 | K105: 0 | L105: 0 | M105: 0 | N105: 0 | O105: 0 | P105: 0 | Q105: 0 | R105: 0 | S105: 0
C106: 510 | D106: Development costs (depreciable) | E106: $mm nominal | G106: =G77*G$99 -> 0 | H106: 510 | I106: 0 | J106: 0 | K106: 0 | L106: 0 | M106: 0 | N106: 0 | O106: 0 | P106: 0 | Q106: 0 | R106: 0 | S106: 0
C107: =SUM(G107:S107) -> 81.21425074 | D107: Replacement capital costs (depreciable) | E107: $mm nominal | G107: =G78*G$99 -> 0 | H107: 0 | I107: 15.606 | J107: 15.91812 | K107: 16.2364824 | L107: 16.56121205 | M107: 16.89243629 | N107: 0 | O107: 0 | P107: 0 | Q107: 0 | R107: 0 | S107: 0
C108: 4071.83593 | D108: Operating costs | E108: $mm nominal | G108: =G79*G$99 -> 0 | H108: 0 | I108: 113.9238 | J108: 290.50569 | K108: 888.9474114 | L108: 725.3810877 | M108: 591.9109676 | N108: 482.9993495 | O108: 394.1274692 | P108: 321.6080149 | Q108: 262.4321401 | R108: 0 | S108: 0
C109: 248.6748617 | D109: Decommissioning costs | E109: $mm nominal | G109: =G80*G$99 -> 0 | H109: 0 | I109: 0 | J109: 0 | K109: 0 | L109: 0 | M109: 0 | N109: 0 | O109: 0 | P109: 0 | Q109: 0 | R109: 248.6748617 | S109: 0
C110: 5161.725043 | D110: Total costs | E110: $mm nominal | G110: =SUM(G105:G109) -> 250 | H110: =SUM(H105:H109) -> 510 | I110: 129.5298 | J110: 306.42381 | K110: 905.1838938 | L110: 741.9422998 | M110: 608.8034039 | N110: 482.9993495 | O110: 394.1274692 | P110: 321.6080149 | Q110: 262.4321401 | R110: 248.6748617 | S110: 0
A111: =ROUND(C111-(C104-SUM(C105:C109)),5)=0 -> TRUE | C111: 2439.035361 | D111: Project-pre tax cashflow | E111: $mm nominal | G111: =G104-G110 -> -250 | H111: =H104-H110 -> -510 | I111: 83.12796 | J111: 235.853478 | K111: 754.1846075 | L111: 612.1023973 | M111: 496.0970689 | N111: 418.5994363 | O111: 341.57714 | P111: 278.7269462 | Q111: 227.4411881 | R111: -248.6748617 | S111: 0
C113: =IFERROR(IRR(G111:S111),0) -> 0.3816661167 | D113: Internal rate of return (nominal) | E113: % | G113: =IFERROR(IRR($G111:G111),"--") -> -- | H113: =IFERROR(IRR($G111:H111),"--") -> -- | I113: =IFERROR(IRR($G111:I111),"--") -> -- | J113: =IFERROR(IRR($G111:J111),"--") -> -0.3436271596 | K113: =IFERROR(IRR($G111:K111),"--") -> 0.1243610372 | L113: =IFERROR(IRR($G111:L111),"--") -> 0.2642902993 | M113: =IFERROR(IRR($G111:M111),"--") -> 0.3250475371 | N113: =IFERROR(IRR($G111:N111),"--") -> 0.3558508062 | O113: =IFERROR(IRR($G111:O111),"--") -> 0.371911359 | P113: =IFERROR(IRR($G111:P111),"--") -> 0.3806329672 | Q113: =IFERROR(IRR($G111:Q111),"--") -> 0.3854946369 | R113: =IFERROR(IRR($G111:R111),"--") -> 0.3816661167 | S113: =IFERROR(IRR($G111:S111),"--") -> 0.3816661167
C114: =NPV($F$51,$H$111:$S$111)+$G$111 -> 1200.376958 | D114: ="Project pre-tax cash flow NPV"&$F$51*100 -> Project pre-tax cash flow NPV10 | E114: $mm nominal
A116: Fiscal Calculations
C118: Total | D118: Decommissioning
C119: =SUM(G119:S119) -> 12 | D119: Decommissioning year | E119: years | G119: =G58*(G120>0) -> 0 | H119: =H58*(H120>0) -> 0 | I119: 0 | J119: 0 | K119: 0 | L119: 0 | M119: 0 | N119: 0 | O119: 0 | P119: 0 | Q119: 0 | R119: 12 | S119: 0
C120: =SUM(G120:S120) -> 248.6748617 | D120: Decommissioning costs spent | E120: $mm nominal | G120: =G109 -> 0 | H120: =H109 -> 0 | I120: 0 | J120: 0 | K120: 0 | L120: 0 | M120: 0 | N120: 0 | O120: 0 | P120: 0 | Q120: 0 | R120: 248.6748617 | S120: 0
C121: 200 | D121: Decommissioning costs real terms | E121: $mm const | G121: =G120/G99 -> 0 | H121: =H120/H99 -> 0 | I121: 0 | J121: 0 | K121: 0 | L121: 0 | M121: 0 | N121: 0 | O121: 0 | P121: 0 | Q121: 0 | R121: 200 | S121: 0
D122: Escalated decommissioning costs, end of year | E122: $mm nominal | G122: =$C$121*G99*(G58<=$C$119)*(1+$F$53) -> 204 | H122: =$C$121*H99*(H58<=$C$119)*(1+$F$53) -> 208.08 | I122: 212.2416 | J122: 216.486432 | K122: 220.8161606 | L122: 225.2324839 | M122: 229.7371335 | N122: 234.3318762 | O122: 239.0185137 | P122: 243.798884 | Q122: 248.6748617 | R122: 253.6483589 | S122: 0
D124: % reserves produced, end of year | E124: % | G124: =SUM($G$60:G60)/$C$60 -> 0 | H124: =SUM($G$60:H60)/$C$60 -> 0 | I124: =SUM($G$60:I60)/$C$60 -> 0.0301789491 | J124: =SUM($G$60:J60)/$C$60 -> 0.1056263218 | K124: =SUM($G$60:K60)/$C$60 -> 0.3319684401 | L124: =SUM($G$60:L60)/$C$60 -> 0.5130421346 | M124: =SUM($G$60:M60)/$C$60 -> 0.6579010903 | N124: =SUM($G$60:N60)/$C$60 -> 0.7737882548 | O124: =SUM($G$60:O60)/$C$60 -> 0.8664979865 | P124: =SUM($G$60:P60)/$C$60 -> 0.9406657718 | Q124: =SUM($G$60:Q60)/$C$60 -> 1 | R124: =SUM($G$60:R60)/$C$60 -> 1 | S124: =SUM($G$60:S60)/$C$60 -> 1
D125: Remaining recoverable reserves, end of year | E125: MMBbl | G125: =$C$60-SUM($G$60:G60) -> 120.945232 | H125: =$C$60-SUM($G$60:H60) -> 120.945232 | I125: =$C$60-SUM($G$60:I60) -> 117.295232 | J125: =$C$60-SUM($G$60:J60) -> 108.170232 | K125: =$C$60-SUM($G$60:K60) -> 80.795232 | L125: =$C$60-SUM($G$60:L60) -> 58.895232 | M125: =$C$60-SUM($G$60:M60) -> 41.375232 | N125: =$C$60-SUM($G$60:N60) -> 27.359232 | O125: =$C$60-SUM($G$60:O60) -> 16.146432 | P125: =$C$60-SUM($G$60:P60) -> 7.176192 | Q125: =$C$60-SUM($G$60:Q60) -> 0 | R125: =$C$60-SUM($G$60:R60) -> 0 | S125: =$C$60-SUM($G$60:S60) -> 0
D126: Decommissioning fund flag | E126: flag | G126: =1*(G124>$F$13)*(G59>0) -> 0 | H126: 0 | I126: 0 | J126: 0 | K126: 0 | L126: 0 | M126: 1 | N126: 1 | O126: 1 | P126: 1 | Q126: 1 | R126: 0 | S126: 0
C127: =SUM(G127:S127) -> 58.895232 | D127: Production during decommissioning period | E127: MMBbl | G127: =G126*G60 -> 0 | H127: 0 | I127: 0 | J127: 0 | K127: 0 | L127: 0 | M127: 17.52 | N127: 14.016 | O127: 11.2128 | P127: 8.97024 | Q127: 7.176192 | R127: 0 | S127: 0
C128: 202.419072 | D128: Cumulative production during decommissioning period | E128: MMBbl | G128: =(G127+F128)*G126 -> 0 | H128: =(H127+G128)*H126 -> 0 | I128: 0 | J128: 0 | K128: 0 | L128: 0 | M128: 17.52 | N128: 31.536 | O128: 42.7488 | P128: 51.71904 | Q128: 58.895232 | R128: 0 | S128: 0
C129: 824.719125 | D129: Decommissioning fund opening balance | E129: $mm nominal | G129: =F133 -> 0 | H129: =G133 -> 0 | I129: 0 | J129: 0 | K129: 0 | L129: 0 | M129: 0 | N129: 68.34160326 | O129: 124.5713705 | P129: 171.4759374 | Q129: 211.6553522 | R129: 248.6748617 | S129: 0
C130: 248.6748617 | D130: Provision allowed current period | E130: $mm nominal | G130: =IF(G126<>0,(G122-G129)*IFERROR(G127/F125,1)*($F$12="yes"),0) -> 0 | H130: 0 | I130: 0 | J130: 0 | K130: 0 | L130: 0 | M130: =IF(M126<>0,(M122-M129)*IFERROR(M127/L125,1)*($F$12="yes"),0) -> 68.34160326 | N130: 56.22976726 | O130: 46.90456689 | P130: 40.17941477 | Q130: 37.0195095 | R130: 0 | S130: 0
C131: -248.6748617 | D131: Withdrawal to meet decommissioning costs | E131: $mm nominal | G131: =MIN(G120,F133)*-1 -> 0 | H131: =MIN(H120,G133)*-1 -> 0 | I131: 0 | J131: 0 | K131: 0 | L131: 0 | M131: 0 | N131: 0 | O131: 0 | P131: 0 | Q131: 0 | R131: -248.6748617 | S131: 0
C132: -8.526512829e-14 | D132: Surplus balance into profit petroleum | E132: $mm nominal | G132: =(G131<>0)*(G129+G131)*-1 -> 0 | H132: 0 | I132: 0 | J132: 0 | K132: 0 | L132: 0 | M132: 0 | N132: 0 | O132: 0 | P132: 0 | Q132: 0 | R132: -8.526512829e-14 | S132: 0
D133: Closing balance | E133: $mm nominal | G133: =SUM(G129:G132) -> 0 | H133: =SUM(H129:H132) -> 0 | I133: =SUM(I129:I132) -> 0 | J133: 0 | K133: 0 | L133: 0 | M133: 68.34160326 | N133: 124.5713705 | O133: 171.4759374 | P133: 211.6553522 | Q133: 248.6748617 | R133: 0 | S133: 0
D135: Royalty
C136: =SUM(G136:S136) -> 8143.671861 | D136: Gross revenue | E136: $mm nominal | G136: =G102 -> 0 | H136: =H102 -> 0 | I136: 227.8476 | J136: 581.01138 | K136: 1777.894823 | L136: 1450.762175 | M136: 1183.821935 | N136: 965.9986991 | O136: 788.2549384 | P136: 643.2160298 | Q136: 524.8642803 | R136: 0 | S136: 0
C137: 7600.760404 | D137: Net revenue | E137: $mm nominal | G137: =G104 -> 0 | H137: =H104 -> 0 | I137: 212.65776 | J137: 542.277288 | K137: 1659.368501 | L137: 1354.044697 | M137: 1104.900473 | N137: 901.5987858 | O137: 735.7046092 | P137: 600.3349611 | Q137: 489.8733283 | R137: 0 | S137: 0
C138: 7600.760404 | D138: ="Royalty base: "&$F$11&" revenue" -> Royalty base: net revenue | E138: $mm nominal | G138: =IF(G89=0,0,IF($F$11="gross",G136,G137)) -> 0 | H138: =IF(H89=0,0,IF($F$11="gross",H136,H137)) -> 0 | I138: 212.65776 | J138: 542.277288 | K138: 1659.368501 | L138: 1354.044697 | M138: 1104.900473 | N138: 901.5987858 | O138: 735.7046092 | P138: 600.3349611 | Q138: 489.8733283 | R138: 0 | S138: 0
C139: 0 | D139: Royalty payable | E139: $mm nominal | G139: =G138*$F$10 -> 0 | H139: =H138*$F$10 -> 0 | I139: 0 | J139: 0 | K139: 0 | L139: 0 | M139: 0 | N139: 0 | O139: 0 | P139: 0 | Q139: 0 | R139: 0 | S139: 0
D141: Bonus
D142: Oil production | E142: =E59 -> Mbpd | G142: =G59 -> 0 | H142: 0 | I142: 10 | J142: 25 | K142: 75 | L142: 60 | M142: 48 | N142: 38.4 | O142: 30.72 | P142: 24.576 | Q142: 19.6608 | R142: 0 | S142: 0
C143: =SUM(G143:S143) -> 50 | D143: Production bonus | E143: $mm nominal | G143: =IF(AND(G142>0,SUM($F$142:F142)<=0),$F$9,0) -> 0 | H143: =IF(AND(H142>0,SUM($F$142:G142)<=0),$F$9,0) -> 0 | I143: =IF(AND(I142>0,SUM($F$142:H142)<=0),$F$9,0) -> 50 | J143: =IF(AND(J142>0,SUM($F$142:I142)<=0),$F$9,0) -> 0 | K143: =IF(AND(K142>0,SUM($F$142:J142)<=0),$F$9,0) -> 0 | L143: =IF(AND(L142>0,SUM($F$142:K142)<=0),$F$9,0) -> 0 | M143: =IF(AND(M142>0,SUM($F$142:L142)<=0),$F$9,0) -> 0 | N143: =IF(AND(N142>0,SUM($F$142:M142)<=0),$F$9,0) -> 0 | O143: =IF(AND(O142>0,SUM($F$142:N142)<=0),$F$9,0) -> 0 | P143: =IF(AND(P142>0,SUM($F$142:O142)<=0),$F$9,0) -> 0 | Q143: =IF(AND(Q142>0,SUM($F$142:P142)<=0),$F$9,0) -> 0 | R143: =IF(AND(R142>0,SUM($F$142:Q142)<=0),$F$9,0) -> 0 | S143: =IF(AND(S142>0,SUM($F$142:R142)<=0),$F$9,0) -> 0
D145: Project net cash flow after decommissioning, royalty and bonus
C146: =SUM(G146:S146) -> 7600.760404 | D146: Net revenue after royalty | E146: $mm nominal | G146: =G104-G139 -> 0 | H146: =H104-H139 -> 0 | I146: 212.65776 | J146: 542.277288 | K146: 1659.368501 | L146: 1354.044697 | M146: 1104.900473 | N146: 901.5987858 | O146: 735.7046092 | P146: 600.3349611 | Q146: 489.8733283 | R146: 0 | S146: 0
C147: 250 | D147: Exploration costs (expensed) | E147: $mm nominal | G147: =G105 -> 250 | H147: 0 | I147: 0 | J147: 0 | K147: 0 | L147: 0 | M147: 0 | N147: 0 | O147: 0 | P147: 0 | Q147: 0 | R147: 0 | S147: 0
C148: 510 | D148: Development costs (depreciable) | E148: $mm nominal | G148: =G106 -> 0 | H148: 510 | I148: 0 | J148: 0 | K148: 0 | L148: 0 | M148: 0 | N148: 0 | O148: 0 | P148: 0 | Q148: 0 | R148: 0 | S148: 0
C149: =SUM(G149:S149) -> 81.21425074 | D149: Replacement capital costs (depreciable) | E149: $mm nominal | G149: =G107 -> 0 | H149: 0 | I149: 15.606 | J149: 15.91812 | K149: 16.2364824 | L149: 16.56121205 | M149: 16.89243629 | N149: 0 | O149: 0 | P149: 0 | Q149: 0 | R149: 0 | S149: 0
C150: 4071.83593 | D150: Operating costs | E150: $mm nominal | G150: =G108 -> 0 | H150: 0 | I150: 113.9238 | J150: 290.50569 | K150: 888.9474114 | L150: 725.3810877 | M150: 591.9109676 | N150: 482.9993495 | O150: 394.1274692 | P150: 321.6080149 | Q150: 262.4321401 | R150: 0 | S150: 0
C151: 248.6748617 | D151: Decommissioning provision/costs | E151: $mm nominal | G151: =G120+G130+G131+G132 -> 0 | H151: =H120+H130+H131+H132 -> 0 | I151: 0 | J151: 0 | K151: 0 | L151: 0 | M151: 68.34160326 | N151: 56.22976726 | O151: 46.90456689 | P151: 40.17941477 | Q151: 37.0195095 | R151: -8.526512829e-14 | S151: 0
C152: 50 | D152: Production bonus | E152: $mm nominal | G152: =G143 -> 0 | H152: =H143 -> 0 | I152: 50 | J152: 0 | K152: 0 | L152: 0 | M152: 0 | N152: 0 | O152: 0 | P152: 0 | Q152: 0 | R152: 0 | S152: 0
C153: 2389.035361 | D153: Net cash flow | E153: $mm nominal | G153: =G146-SUM(G147:G152) -> -250 | H153: -510 | I153: 33.12796 | J153: 235.853478 | K153: 754.1846075 | L153: 612.1023973 | M153: 427.7554657 | N153: 362.369669 | O153: 294.6725731 | P153: 238.5475315 | Q153: 190.4216786 | R153: 8.526512829e-14 | S153: 0
D155: Joint venture sharing of project cash flow
D156: Development starts | E156: flag | G156: =1*(SUM(G$77:$G77)>0) -> 0 | H156: =1*(SUM($G$77:H77)>0) -> 1 | I156: =1*(SUM($G$77:I77)>0) -> 1 | J156: =1*(SUM($G$77:J77)>0) -> 1 | K156: =1*(SUM($G$77:K77)>0) -> 1 | L156: =1*(SUM($G$77:L77)>0) -> 1 | M156: =1*(SUM($G$77:M77)>0) -> 1 | N156: =1*(SUM($G$77:N77)>0) -> 1 | O156: =1*(SUM($G$77:O77)>0) -> 1 | P156: =1*(SUM($G$77:P77)>0) -> 1 | Q156: =1*(SUM($G$77:Q77)>0) -> 1 | R156: =1*(SUM($G$77:R77)>0) -> 1 | S156: =1*(SUM($G$77:S77)>0) -> 1
D157: Production starts | E157: flag | G157: =1*(G60>0) -> 0 | H157: 0 | I157: 1 | J157: 1 | K157: 1 | L157: 1 | M157: 1 | N157: 1 | O157: 1 | P157: 1 | Q157: 1 | R157: 0 | S157: 0
D158: ="Selected: "&F43 -> Selected: development | E158: flag | G158: =IF($F$43="development",G156,G157) -> 0 | H158: 1 | I158: 1 | J158: 1 | K158: 1 | L158: 1 | M158: 1 | N158: 1 | O158: 1 | P158: 1 | Q158: 1 | R158: 1 | S158: 1
D160: SOC (state-owned company) | E160: % | G160: =G158*$F$42 -> 0 | H160: =H158*$F$42 -> 0.1 | I160: 0.1 | J160: 0.1 | K160: 0.1 | L160: 0.1 | M160: 0.1 | N160: 0.1 | O160: 0.1 | P160: 0.1 | Q160: 0.1 | R160: 0.1 | S160: 0.1
D161: Contractor | E161: % | G161: =1-G160 -> 1 | H161: =1-H160 -> 0.9 | I161: 0.9 | J161: 0.9 | K161: 0.9 | L161: 0.9 | M161: 0.9 | N161: 0.9 | O161: 0.9 | P161: 0.9 | Q161: 0.9 | R161: 0.9 | S161: 0.9
D163: Contractor share of JV
C164: =SUM(G164:S164) -> 6840.684363 | D164: Net revenue after royalty | E164: $mm nominal | G164: =G$161*G146 -> 0 | H164: 0 | I164: 191.391984 | J164: 488.0495592 | K164: 1493.431651 | L164: 1218.640227 | M164: 994.4104255 | N164: 811.4389072 | O164: 662.1341483 | P164: 540.301465 | Q164: 440.8859954 | R164: 0 | S164: 0
C165: 250 | D165: Exploration costs (expensed) | E165: $mm nominal | G165: =G$161*G147 -> 250 | H165: 0 | I165: 0 | J165: 0 | K165: 0 | L165: 0 | M165: 0 | N165: 0 | O165: 0 | P165: 0 | Q165: 0 | R165: 0 | S165: 0
C166: 459 | D166: Development costs (depreciable) | E166: $mm nominal | G166: =G$161*G148 -> 0 | H166: 459 | I166: 0 | J166: 0 | K166: 0 | L166: 0 | M166: 0 | N166: 0 | O166: 0 | P166: 0 | Q166: 0 | R166: 0 | S166: 0
C167: =SUM(G167:S167) -> 73.09282566 | D167: Replacement capital costs (depreciable) | E167: $mm nominal | G167: =G$161*G149 -> 0 | H167: 0 | I167: 14.0454 | J167: 14.326308 | K167: 14.61283416 | L167: 14.90509084 | M167: 15.20319266 | N167: 0 | O167: 0 | P167: 0 | Q167: 0 | R167: 0 | S167: 0
C168: 3664.652337 | D168: Operating costs | E168: $mm nominal | G168: =G$161*G150 -> 0 | H168: 0 | I168: 102.53142 | J168: 261.455121 | K168: 800.0526703 | L168: 652.8429789 | M168: 532.7198708 | N168: 434.6994146 | O168: 354.7147223 | P168: 289.4472134 | Q168: 236.1889261 | R168: 0 | S168: 0
C169: 223.8073755 | D169: Decommissioning provision/costs | E169: $mm nominal | G169: =G$161*G151 -> 0 | H169: 0 | I169: 0 | J169: 0 | K169: 0 | L169: 0 | M169: 61.50744294 | N169: 50.60679053 | O169: 42.2141102 | P169: 36.1614733 | Q169: 33.31755855 | R169: -7.673861546e-14 | S169: 0
C170: 45 | D170: Production bonus | E170: $mm nominal | G170: =G$161*G152 -> 0 | H170: 0 | I170: 45 | J170: 0 | K170: 0 | L170: 0 | M170: 0 | N170: 0 | O170: 0 | P170: 0 | Q170: 0 | R170: 0 | S170: 0
C171: 2125.131825 | D171: Net cash flow | E171: $mm nominal | G171: =G164-SUM(G165:G170) -> -250 | H171: =H164-SUM(H165:H170) -> -459 | I171: 29.815164 | J171: 212.2681302 | K171: 678.7661467 | L171: 550.8921576 | M171: 384.9799191 | N171: 326.1327021 | O171: 265.2053158 | P171: 214.6927783 | Q171: 171.3795108 | R171: 7.673861546e-14 | S171: 0
D173: SOC share of JV
C174: =SUM(G174:S174) -> 760.0760404 | D174: Net revenue after royalty | E174: $mm nominal | G174: =G$160*G146 -> 0 | H174: 0 | I174: 21.265776 | J174: 54.2277288 | K174: 165.9368501 | L174: 135.4044697 | M174: 110.4900473 | N174: 90.15987858 | O174: 73.57046092 | P174: 60.03349611 | Q174: 48.98733283 | R174: 0 | S174: 0
C175: 0 | D175: Exploration costs (expensed) | E175: $mm nominal | G175: =G$160*G147 -> 0 | H175: 0 | I175: 0 | J175: 0 | K175: 0 | L175: 0 | M175: 0 | N175: 0 | O175: 0 | P175: 0 | Q175: 0 | R175: 0 | S175: 0
C176: 51 | D176: Development costs (depreciable) | E176: $mm nominal | G176: =G$160*G148 -> 0 | H176: 51 | I176: 0 | J176: 0 | K176: 0 | L176: 0 | M176: 0 | N176: 0 | O176: 0 | P176: 0 | Q176: 0 | R176: 0 | S176: 0
C177: =SUM(G177:S177) -> 8.121425074 | D177: Replacement capital costs (depreciable) | E177: $mm nominal | G177: =G$160*G149 -> 0 | H177: 0 | I177: 1.5606 | J177: 1.591812 | K177: 1.62364824 | L177: 1.656121205 | M177: 1.689243629 | N177: 0 | O177: 0 | P177: 0 | Q177: 0 | R177: 0 | S177: 0
C178: 407.183593 | D178: Operating costs | E178: $mm nominal | G178: =G$160*G150 -> 0 | H178: 0 | I178: 11.39238 | J178: 29.050569 | K178: 88.89474114 | L178: 72.53810877 | M178: 59.19109676 | N178: 48.29993495 | O178: 39.41274692 | P178: 32.16080149 | Q178: 26.24321401 | R178: 0 | S178: 0
C179: 24.86748617 | D179: Decommissioning provision/costs | E179: $mm nominal | G179: =G$160*G151 -> 0 | H179: 0 | I179: 0 | J179: 0 | K179: 0 | L179: 0 | M179: 6.834160326 | N179: 5.622976726 | O179: 4.690456689 | P179: 4.017941477 | Q179: 3.70195095 | R179: -8.526512829e-15 | S179: 0
C180: 5 | D180: Production bonus | E180: $mm nominal | G180: =G$160*G152 -> 0 | H180: 0 | I180: 5 | J180: 0 | K180: 0 | L180: 0 | M180: 0 | N180: 0 | O180: 0 | P180: 0 | Q180: 0 | R180: 0 | S180: 0
A181: =ROUND(C153-C171-C181,5)=0 -> TRUE | C181: 263.9035361 | D181: Net cash flow | E181: $mm nominal | G181: =G174-SUM(G175:G180) -> 0 | H181: =H174-SUM(H175:H180) -> -51 | I181: 3.312796 | J181: 23.5853478 | K181: 75.41846075 | L181: 61.21023973 | M181: 42.77554657 | N181: 36.2369669 | O181: 29.46725731 | P181: 23.85475315 | Q181: 19.04216786 | R181: 8.526512829e-15 | S181: 0
D183: Joint venture cost recovery | E183: year | G183: 1 | H183: =G183+1 -> 2 | I183: =H183+1 -> 3 | J183: 4 | K183: 5 | L183: 6 | M183: 7 | N183: 8 | O183: 9 | P183: 10 | Q183: 11 | R183: 12 | S183: 13
C184: =SUM(G184:S184) -> 7600.760404 | D184: Net revenue after royalty | E184: $mm nominal | G184: =G146 -> 0 | H184: =H146 -> 0 | I184: 212.65776 | J184: 542.277288 | K184: 1659.368501 | L184: 1354.044697 | M184: 1104.900473 | N184: 901.5987858 | O184: 735.7046092 | P184: 600.3349611 | Q184: 489.8733283 | R184: 0 | S184: 0
C185: 6080.608323 | D185: Cost recovery ceiling | E185: $mm nominal | G185: =$F$15*G184 -> 0 | H185: =$F$15*H184 -> 0 | I185: 170.126208 | J185: 433.8218304 | K185: 1327.494801 | L185: 1083.235758 | M185: 883.9203782 | N185: 721.2790286 | O185: 588.5636874 | P185: 480.2679689 | Q185: 391.8986626 | R185: 0 | S185: 0
C186: 250 | D186: Exploration costs (expensed) | E186: $mm nominal | G186: =G147 -> 250 | H186: =H147 -> 0 | I186: 0 | J186: 0 | K186: 0 | L186: 0 | M186: 0 | N186: 0 | O186: 0 | P186: 0 | Q186: 0 | R186: 0 | S186: 0
D188: Depreciation switch | E188: flag | G188: =(MAX(G$89:$S89)>1)*1 -> 1 | H188: =(MAX(H$89:$S89)>1)*1 -> 1 | I188: =(MAX(I$89:$S89)>1)*1 -> 1 | J188: =(MAX(J$89:$S89)>1)*1 -> 1 | K188: =(MAX(K$89:$S89)>1)*1 -> 1 | L188: =(MAX(L$89:$S89)>1)*1 -> 1 | M188: =(MAX(M$89:$S89)>1)*1 -> 1 | N188: =(MAX(N$89:$S89)>1)*1 -> 1 | O188: =(MAX(O$89:$S89)>1)*1 -> 1 | P188: =(MAX(P$89:$S89)>1)*1 -> 1 | Q188: =(MAX(Q$89:$S89)>1)*1 -> 1 | R188: =(MAX(R$89:$S89)>1)*1 -> 0 | S188: =(MAX(S$89:$S89)>1)*1 -> 0
C190: 591.2142507 | D190: Development and replacement capital costs (depreciable) | E190: $mm nominal | G190: =G148+G149 -> 0 | H190: =H148+H149 -> 510 | I190: 15.606 | J190: 15.91812 | K190: 16.2364824 | L190: 16.56121205 | M190: 16.89243629 | N190: 0 | O190: 0 | P190: 0 | Q190: 0 | R190: 0 | S190: 0
C191: 591.2142507 | D191: Development and replacement capital costs (depreciable, deferred) | E191: $mm nominal | G191: =IF(G89=0,0,IF(G89=1,SUM($G190:G190),G190))*($F$16>0) -> 0 | H191: =IF(H89=0,0,IF(H89=1,SUM($G190:H190),H190))*($F$16>0) -> 0 | I191: =IF(I89=0,0,IF(I89=1,SUM($G190:I190),I190))*($F$16>0) -> 525.606 | J191: =IF(J89=0,0,IF(J89=1,SUM($G190:J190),J190))*($F$16>0) -> 15.91812 | K191: =IF(K89=0,0,IF(K89=1,SUM($G190:K190),K190))*($F$16>0) -> 16.2364824 | L191: =IF(L89=0,0,IF(L89=1,SUM($G190:L190),L190))*($F$16>0) -> 16.56121205 | M191: =IF(M89=0,0,IF(M89=1,SUM($G190:M190),M190))*($F$16>0) -> 16.89243629 | N191: =IF(N89=0,0,IF(N89=1,SUM($G190:N190),N190))*($F$16>0) -> 0 | O191: =IF(O89=0,0,IF(O89=1,SUM($G190:O190),O190))*($F$16>0) -> 0 | P191: =IF(P89=0,0,IF(P89=1,SUM($G190:P190),P190))*($F$16>0) -> 0 | Q191: =IF(Q89=0,0,IF(Q89=1,SUM($G190:Q190),Q190))*($F$16>0) -> 0 | R191: =IF(R89=0,0,IF(R89=1,SUM($G190:R190),R190))*($F$16>0) -> 0 | S191: =IF(S89=0,0,IF(S89=1,SUM($G190:S190),S190))*($F$16>0) -> 0
B192: =IF($F$16=0,0,1/$F$16) -> 0.2 | C192: 118.2428501 | D192: Depreciation year 1 | E192: $mm nominal | G192: =G$191*$B192*G$188 -> 0 | H192: =H$191*$B192*H$188 -> 0 | I192: 105.1212 | J192: 3.183624 | K192: 3.24729648 | L192: 3.31224241 | M192: 3.378487258 | N192: 0 | O192: 0 | P192: 0 | Q192: 0 | R192: 0 | S192: 0
B193: =IF($F$16=0,0,MIN(1/$F$16,1-SUM($B$192:B192))) -> 0.2 | C193: 118.2428501 | D193: Depreciation year 2 | E193: $mm nominal | H193: =G$191*$B193*H$188 -> 0 | I193: =H$191*$B193*I$188 -> 0 | J193: 105.1212 | K193: 3.183624 | L193: 3.24729648 | M193: 3.31224241 | N193: 3.378487258 | O193: 0 | P193: 0 | Q193: 0 | R193: 0 | S193: 0
B194: =IF($F$16=0,0,MIN(1/$F$16,1-SUM($B$192:B193))) -> 0.2 | C194: 118.2428501 | D194: Depreciation year 3 | E194: $mm nominal | I194: =G$191*$B194*I$188 -> 0 | J194: =H$191*$B194*J$188 -> 0 | K194: 105.1212 | L194: 3.183624 | M194: 3.24729648 | N194: 3.31224241 | O194: 3.378487258 | P194: 0 | Q194: 0 | R194: 0 | S194: 0
B195: =IF($F$16=0,0,MIN(1/$F$16,1-SUM($B$192:B194))) -> 0.2 | C195: 118.2428501 | D195: Depreciation year 4 | E195: $mm nominal | J195: =G$191*$B195*J$188 -> 0 | K195: =H$191*$B195*K$188 -> 0 | L195: 105.1212 | M195: 3.183624 | N195: 3.24729648 | O195: 3.31224241 | P195: 3.378487258 | Q195: 0 | R195: 0 | S195: 0
B196: =IF($F$16=0,0,MIN(1/$F$16,1-SUM($B$192:B195))) -> 0.2 | C196: 118.2428501 | D196: Depreciation year 5 | E196: $mm nominal | K196: =G$191*$B196*K$188 -> 0 | L196: =H$191*$B196*L$188 -> 0 | M196: 105.1212 | N196: 3.183624 | O196: 3.24729648 | P196: 3.31224241 | Q196: 3.378487258 | R196: 0 | S196: 0
B197: =IF($F$16=0,0,MIN(1/$F$16,1-SUM($B$192:B196))) -> 0 | C197: 0 | D197: Depreciation year 6 | E197: $mm nominal | L197: =G$191*$B197*L$188 -> 0 | M197: =H$191*$B197*M$188 -> 0 | N197: 0 | O197: 0 | P197: 0 | Q197: 0 | R197: 0 | S197: 0
B198: =IF($F$16=0,0,MIN(1/$F$16,1-SUM($B$192:B197))) -> 0 | C198: 0 | D198: Depreciation year 7 | E198: $mm nominal | M198: =G$191*$B198*M$188 -> 0 | N198: =H$191*$B198*N$188 -> 0 | O198: 0 | P198: 0 | Q198: 0 | R198: 0 | S198: 0
B199: =IF($F$16=0,0,MIN(1/$F$16,1-SUM($B$192:B198))) -> 0 | C199: 0 | D199: Depreciation year 8 | E199: $mm nominal | N199: =G$191*$B199*N$188 -> 0 | O199: =H$191*$B199*O$188 -> 0 | P199: 0 | Q199: 0 | R199: 0 | S199: 0
B200: =IF($F$16=0,0,MIN(1/$F$16,1-SUM($B$192:B199))) -> 0 | C200: 0 | D200: Depreciation year 9 | E200: $mm nominal | O200: =G$191*$B200*O$188 -> 0 | P200: =H$191*$B200*P$188 -> 0 | Q200: 0 | R200: 0 | S200: 0
B201: =IF($F$16=0,0,MIN(1/$F$16,1-SUM($B$192:B200))) -> 0 | C201: 0 | D201: Depreciation year 10 | E201: $mm nominal | P201: =G$191*$B201*P$188 -> 0 | Q201: =H$191*$B201*Q$188 -> 0 | R201: 0 | S201: 0
A202: =ROUND(C190-C202-C206,5)=0 -> TRUE | C202: 591.2142507 | D202: Development costs depreciation | E202: $mm nominal | G202: =SUM(G192:G201) -> 0 | H202: =SUM(H192:H201) -> 0 | I202: 105.1212 | J202: 108.304824 | K202: 111.5521205 | L202: 114.8643629 | M202: 118.2428501 | N202: 13.12165015 | O202: 9.938026147 | P202: 6.690729667 | Q202: 3.378487258 | R202: 0 | S202: 0
C204: =INDEX(G204:S204,,MATCH($C$89,$G$89:$S$89,0)) -> 591.2142507 | D204: Cumulative development and replacement capital costs (depreciable) | E204: $mm nominal | G204: =(F204+G190+F206)*G188 -> 0 | H204: 510 | I204: 525.606 | J204: 541.52412 | K204: 557.7606024 | L204: 574.3218144 | M204: 591.2142507 | N204: 591.2142507 | O204: 591.2142507 | P204: =(O204+P190+O206)*P188 -> 591.2142507 | Q204: =(P204+Q190+P206)*Q188 -> 591.2142507 | R204: 0 | S204: 0
C205: =INDEX(G205:S205,,MATCH($C$89,$G$89:$S$89,0)) -> 591.2142507 | D205: Cumulative depreciation | E205: $mm nominal | G205: =(F205+G202)*G188 -> 0 | H205: =(G205+H202)*H188 -> 0 | I205: 105.1212 | J205: 213.426024 | K205: 324.9781445 | L205: 439.8425074 | M205: 558.0853575 | N205: 571.2070077 | O205: 581.1450338 | P205: 587.8357635 | Q205: 591.2142507 | R205: 0 | S205: 0
A206: =ROUND(C204-C205-C206,5)=0 -> TRUE | C206: =SUM(G206:S206) -> 1.136868377e-13 | D206: Undepreciated balance at the end of the project | E206: $mm nominal | G206: =(G204-G205)*(G90=1) -> 0 | H206: =(H204-H205)*(H90=1) -> 0 | I206: 0 | J206: 0 | K206: 0 | L206: 0 | M206: 0 | N206: 0 | O206: 0 | P206: 0 | Q206: 1.136868377e-13 | R206: 0 | S206: 0
D208: Opening balance | E208: $mm nominal | G208: =F216 -> 0 | H208: =G216 -> 250 | I208: 250 | J208: 298.918792 | K208: 263.9074756 | L208: 0 | M208: 0 | N208: 0 | O208: 0 | P208: 0 | Q208: 0 | R208: 0 | S208: 0
C209: =SUM(G209:S209) -> 250 | D209: Exploration with uplift (if applicable) | E209: $mm nominal | G209: =IF(AND($F$17="yes",G91<=$F$19),G186*(1+$F$18),G186) -> 250 | H209: 0 | I209: 0 | J209: 0 | K209: 0 | L209: 0 | M209: 0 | N209: 0 | O209: 0 | P209: 0 | Q209: 0 | R209: 0 | S209: 0
C210: 591.2142507 | D210: Depreciation of development and replacement capital costs with uplift (if applicable) | E210: $mm nominal | G210: =IF(AND($F$17="yes",G91<=$F$19),G202*(1+$F$18),G202) -> 0 | H210: 0 | I210: 105.1212 | J210: 108.304824 | K210: 111.5521205 | L210: 114.8643629 | M210: 118.2428501 | N210: 13.12165015 | O210: 9.938026147 | P210: 6.690729667 | Q210: 3.378487258 | R210: 0 | S210: 0
C211: 4071.83593 | D211: Operating costs | E211: $mm nominal | G211: =G150 -> 0 | H211: =H150 -> 0 | I211: 113.9238 | J211: 290.50569 | K211: 888.9474114 | L211: 725.3810877 | M211: 591.9109676 | N211: 482.9993495 | O211: 394.1274692 | P211: 321.6080149 | Q211: 262.4321401 | R211: 0 | S211: 0
C212: 248.6748617 | D212: Decommissioning provision/costs | E212: $mm nominal | G212: =G151 -> 0 | H212: 0 | I212: 0 | J212: 0 | K212: 0 | L212: 0 | M212: 68.34160326 | N212: 56.22976726 | O212: 46.90456689 | P212: 40.17941477 | Q212: 37.0195095 | R212: -8.526512829e-14 | S212: 0
C213: 75.68587168 | D213: Joint venture's proceeds from the sale of undepreciated assets | E213: $mm nominal | G213: =SUM(G281:G282) -> 0 | H213: =SUM(H281:H282) -> 0 | I213: 0 | J213: 0 | K213: 0 | L213: 0 | M213: 0 | N213: 0 | O213: 0 | P213: 0 | Q213: 75.68587168 | R213: 0 | S213: 0
C214: 6148.865439 | D214: Total recoverable costs | E214: $mm nominal | G214: =SUM(G208:G212)-G213 -> 250 | H214: =SUM(H208:H212)-H213 -> 250 | I214: 469.045 | J214: 697.729306 | K214: 1264.407007 | L214: 840.2454506 | M214: 778.495421 | N214: 552.3507669 | O214: 450.9700623 | P214: 368.4781593 | Q214: 227.1442652 | R214: -8.526512829e-14 | S214: 0
C215: 5086.039171 | D215: Cost petroleum | E215: $mm nominal | G215: =MIN(G214,G185) -> 0 | H215: =MIN(H214,H185) -> 0 | I215: 170.126208 | J215: 433.8218304 | K215: 1264.407007 | L215: 840.2454506 | M215: 778.495421 | N215: 552.3507669 | O215: 450.9700623 | P215: 368.4781593 | Q215: 227.1442652 | R215: -8.526512829e-14 | S215: 0
D216: Closing balance | E216: $mm nominal | G216: =G214-G215 -> 250 | H216: =H214-H215 -> 250 | I216: =I214-I215 -> 298.918792 | J216: =J214-J215 -> 263.9074756 | K216: 0 | L216: 0 | M216: 0 | N216: 0 | O216: 0 | P216: 0 | Q216: 0 | R216: 0 | S216: 0
C218: =SUM(G218:S218) -> 5086.039171 | D218: Cost petroleum | E218: $mm nominal | G218: =G215 -> 0 | H218: =H215 -> 0 | I218: 170.126208 | J218: 433.8218304 | K218: 1264.407007 | L218: 840.2454506 | M218: 778.495421 | N218: 552.3507669 | O218: 450.9700623 | P218: 368.4781593 | Q218: 227.1442652 | R218: -8.526512829e-14 | S218: 0
C219: 4577.435254 | D219: Cost petroleum to contractor | E219: $mm nominal | G219: =G218*G$161 -> 0 | H219: =H218*H$161 -> 0 | I219: 153.1135872 | J219: 390.4396474 | K219: 1137.966307 | L219: 756.2209055 | M219: 700.6458789 | N219: 497.1156902 | O219: 405.873056 | P219: 331.6303434 | Q219: 204.4298387 | R219: -7.673861546e-14 | S219: 0
C220: =SUM(G220:S220) -> 508.6039171 | D220: Cost petroleum to state owned company (SOC) | E220: $mm nominal | G220: =G218*G$160 -> 0 | H220: =H218*H$160 -> 0 | I220: 17.0126208 | J220: 43.38218304 | K220: 126.4407007 | L220: 84.02454506 | M220: 77.8495421 | N220: 55.23507669 | O220: 45.09700623 | P220: 36.84781593 | Q220: 22.71442652 | R220: -8.526512829e-15 | S220: 0
C222: =SUM(G222:S222) -> 2514.721232 | D222: Profit petroleum | E222: $mm nominal | G222: =G184-G218 -> 0 | H222: =H184-H218 -> 0 | I222: 42.531552 | J222: 108.4554576 | K222: 394.9614938 | L222: 513.7992465 | M222: 326.4050518 | N222: 349.2480189 | O222: 284.734547 | P222: 231.8568018 | Q222: 262.7290631 | R222: 8.526512829e-14 | S222: 0
D224: Alternative profit petroleum sharing mechanisms
D226: Daily Rate of Profit Petroleum | E226: year | G226: 1 | H226: =G226+1 -> 2 | I226: =H226+1 -> 3 | J226: 4 | K226: 5 | L226: 6 | M226: 7 | N226: 8 | O226: 9 | P226: 10 | Q226: 11 | R226: 12 | S226: 13
C227: =SUM(G227:S227) -> 2514.721232 | D227: Profit petroleum | E227: $mm nominal | G227: =G222 -> 0 | H227: =H222 -> 0 | I227: =I222 -> 42.531552 | J227: 108.4554576 | K227: 394.9614938 | L227: 513.7992465 | M227: 326.4050518 | N227: 349.2480189 | O227: 284.734547 | P227: 231.8568018 | Q227: 262.7290631 | R227: 8.526512829e-14 | S227: 0
B229: Govt. share | C229: Mpbd | D229: Daily rate of production | E229: Mpbd | G229: =G59 -> 0 | H229: =H59 -> 0 | I229: 10 | J229: 25 | K229: 75 | L229: 60 | M229: 48 | N229: 38.4 | O229: 30.72 | P229: 24.576 | Q229: 19.6608 | R229: 0 | S229: 0
B230: =$F$32 -> 0.4 | C230: =$F$22 -> 15 | D230: Tranche 1 | E230: Mpbd | G230: =MIN(G229,$C$230) -> 0 | H230: =MIN(H229,$C$230) -> 0 | I230: =MIN(I229,$C$230) -> 10 | J230: 15 | K230: 15 | L230: 15 | M230: 15 | N230: 15 | O230: 15 | P230: 15 | Q230: 15 | R230: 0 | S230: 0
B231: =$F$33 -> 0.5 | C231: =$F$23 -> 30 | D231: Tranche 2 | E231: Mpbd | G231: =AND(G229>$C230)*(G229-$C230-G232-G233-G234) -> 0 | H231: 0 | I231: 0 | J231: 10 | K231: 15 | L231: 15 | M231: 15 | N231: 15 | O231: 15 | P231: 9.576 | Q231: 4.6608 | R231: 0 | S231: 0
B232: =$F$34 -> 0.6 | C232: =$F$24 -> 45 | D232: Tranche 3 | E232: Mpbd | G232: =AND(G229>$C231)*(G229-$C231-G233-G234) -> 0 | H232: 0 | I232: 0 | J232: 0 | K232: 15 | L232: 15 | M232: 15 | N232: 8.4 | O232: 0.72 | P232: 0 | Q232: 0 | R232: 0 | S232: 0
B233: =$F$35 -> 0.65 | C233: =$F$25 -> 60 | D233: Tranche 4 | E233: Mpbd | G233: =AND(G229>$C232)*(G229-$C232-G234) -> 0 | H233: 0 | I233: 0 | J233: 0 | K233: 15 | L233: 15 | M233: 3 | N233: 0 | O233: 0 | P233: 0 | Q233: 0 | R233: 0 | S233: 0
... 269 more rows

Sheet Mining model
A1: ReadMe Sheet | C1: =AND(A:A) -> TRUE | E1: year | G1: 1 | H1: =G1+1 -> 2 | I1: =H1+1 -> 3 | J1: 4 | K1: 5 | L1: 6 | M1: 7 | N1: 8 | O1: 9 | P1: 10 | Q1: 11 | R1: 12 | S1: 13
A3: INPUTS
D5: Fiscal Regime Assumptions
D6: Regime name | F6: =INDEX(H6:K6,$F$7) -> Royalty + CIT | H6: Royalty + CIT | I6: Royalty + CIT + SCF | J6: Royalty + CIT + RRT | K6: Alt1 | M6: SNAPSHOT RESULTS
D7: Select regime number | F7: 1 | H7: 1 | I7: =H7+1 -> 2 | J7: =I7+1 -> 3 | K7: 4
D8: Signature bonus | E8: $mm | F8: =INDEX(H8:K8,$F$7) -> 0 | M8: NPV results
D9: Royalty rate | E9: % | F9: =INDEX(H9:K9,$F$7) -> 0.05 | H9: 0.05 | I9: 0.05 | J9: 0.05 | Q9: =G324 -> 0 | R9: =H324 -> 0.1 | S9: 0.125 | T9: 0.15
D10: Royalty base (net/gross) | E10: switch | F10: net | H10: net | I10: net | J10: net
D11: Decommissioning provision (yes/no) | E11: swtich | F11: yes | H11: yes | I11: yes | J11: yes | M11: Project pre-tax cashflow | P11: $mm const | Q11: =G325 -> 1123.5 | R11: =H325 -> 507.8686972 | S11: 417.1054522 | T11: 341.7647349
D12: Commencement of decommissioning provision | E12: % depletion | F12: =INDEX(H12:K12,$F$7) -> 0.6 | H12: 0.6 | I12: 0.6 | J12: 0.6 | M12: Total benefits | P12: $mm const | Q12: =G330 -> 1383.5 | R12: =H330 -> 750.5959699 | S12: 655.994341 | T12: 576.9821263
D13: Corporate Income Tax rate | E13: % | F13: 0.3 | H13: 0.3 | I13: 0.3 | J13: 0.3 | M13: Contractor NPV | P13: $mm const | Q13: =G327 -> 522.9257893 | R13: =H327 -> 240.2118158 | S13: 199.1743355 | T13: 165.278259
D14: Exploration costs (expensing) | E14: switch | F14: deferred | H14: deferred | I14: deferred | J14: deferred | M14: Government NPV | P14: $mm const | Q14: =G326 -> 573.8138555 | R14: =H326 -> 289.5325952 | S14: 248.4570154 | T14: 214.5830817
D15: Development costs - intangibles (expensing) | E15: switch | F15: deferred | H15: deferred | I15: deferred | J15: deferred | M15: Average Effective Tax Rate (AETR) | P15: $mm const | Q15: =Q14/Q11 -> 0.5107377441 | R15: =R14/R11 -> 0.5700934055 | S15: =S14/S11 -> 0.5956695463 | T15: 0.6278678275
D16: Development costs - tangibles (depreciation) | E16: switch | F16: deferred | H16: deferred | I16: deferred | J16: deferred | M16: Govt. share of total benefits | P16: $mm const | Q16: =Q14/Q12 -> 0.4147552262 | R16: =R14/R12 -> 0.3857369434 | S16: =S14/S12 -> 0.3787487176 | T16: 0.3719059428
D17: Development costs - tangibles and replacement capital depreciation (years) | E17: years | F17: 5 | H17: 5 | I17: 5 | J17: 5
D18: Surcharge on Cash Flows rate | E18: % | F18: 0 | I18: 0.2 | M18: Real terms results
D19: CIT deductible (yes/no) | E19: switch | F19: 0 | I19: yes | M19: METR | P19: =INDEX($I$497:$I$500,F7) -> 0.3970537707
D20: Resource Rent Tax rate | E20: % | F20: 0 | J20: 0.2 | M20: Pre-tax IRR | P20: =C70 -> 0.4071436483
D21: RRT threshhold | E21: % | F21: 0 | J21: 0.1 | M21: Hurdle rate | P21: =F33 -> 0.125
D22: CIT deductible (yes/no) | E22: switch | F22: 0 | J22: yes | M22: Post-tax IRR on total funds | P22: =C322 -> 0.2712240606
D23: Dividend Withholding Tax | E23: % | F23: 0.15 | H23: 0.15 | I23: 0.15 | J23: 0.15 | M23: Difference | P23: =P21-P22 -> -0.1462240606
D24: State equity (free) | E24: % | F24: 0.1 | H24: 0.1 | I24: 0.1 | J24: 0.1 | M24: Breakeven price | P24: =INDEX($G$497:$G$500,F7) -> 951.8025555
D26: Financing assumptions
D27: Percent of development costs borrowed | E27: % | F27: 0.7
D28: Repayment period (beginning production) | E28: years | F28: 5
D29: Real interest rate | E29: % | F29: 0.05
D31: Economic assumptions
D32: Discount rate government | E32: % | F32: 0.1
D33: Discount rate contractor | E33: % | F33: 0.125
D34: Inflation rate | E34: % | F34: 0.02
D35: Gold smelter price | E35: US $/ounce | F35: 1300
D36: Transport post-fiscal point | E36: US $/ounce | F36: 25
D37: Smelting and refining charge post-fiscal point | E37: US $/ounce | F37: 50
D39: MINING PROJECT
C40: Total | D40: Raw Project Data | E40: year | G40: 1 | H40: 2 | I40: 3 | J40: 4 | K40: 5 | L40: 6 | M40: 7 | N40: 8 | O40: 9 | P40: 10 | Q40: 11 | R40: 12 | S40: 13
C41: =SUM(G41:U41) -> 1900 | D41: Production gold | E41: 000 ounces | G41: 0 | H41: 0 | I41: 100 | J41: 200 | K41: 200 | L41: 200 | M41: 200 | N41: 200 | O41: 200 | P41: 200 | Q41: 200 | R41: 200 | S41: 0
C42: =SUM(G42:U42) -> 47.5 | D42: Transport post-fiscal point | E42: $mm const | G42: =G41*$F$36/1000 -> 0 | H42: 0 | I42: 2.5 | J42: 5 | K42: 5 | L42: 5 | M42: 5 | N42: 5 | O42: 5 | P42: 5 | Q42: 5 | R42: 5 | S42: 0
C43: 95 | D43: Refining and processing post-fiscal point | E43: $mm const | G43: =G$41*$F$37/1000 -> 0 | H43: 0 | I43: 5 | J43: 10 | K43: 10 | L43: 10 | M43: 10 | N43: 10 | O43: 10 | P43: 10 | Q43: 10 | R43: 10 | S43: 0
C44: 10 | D44: Exploration costs (expensed) | E44: $mm const | G44: 10 | H44: 0 | I44: 0 | J44: 0 | K44: 0 | L44: 0 | M44: 0 | N44: 0 | O44: 0 | P44: 0 | Q44: 0 | R44: 0 | S44: 0
C45: 50 | D45: Development costs - intangibles (expensed) | E45: $mm const | G45: 10 | H45: 40 | I45: 0 | J45: 0 | K45: 0 | L45: 0 | M45: 0 | N45: 0 | O45: 0 | P45: 0 | Q45: 0 | R45: 0 | S45: 0
C46: 200 | D46: Development costs - tangibles (depreciable) | E46: $mm const | G46: 50 | H46: 150 | I46: 0 | J46: 0 | K46: 0 | L46: 0 | M46: 0 | N46: 0 | O46: 0 | P46: 0 | Q46: 0 | R46: 0 | S46: 0
C47: 50 | D47: Replacement capital costs (depreciable) | E47: $mm const | G47: 0 | H47: 0 | I47: 10 | J47: 10 | K47: 10 | L47: 10 | M47: 10 | N47: 0 | O47: 0 | P47: 0 | Q47: 0 | R47: 0 | S47: 0
C48: 380 | D48: Operating costs - mining | E48: $mm const | G48: 0 | H48: 0 | I48: 20 | J48: 40 | K48: 40 | L48: 40 | M48: 40 | N48: 40 | O48: 40 | P48: 40 | Q48: 40 | R48: 40 | S48: 0
C49: 380 | D49: Operating costs - milling | E49: $mm const | G49: 0 | H49: 0 | I49: 20 | J49: 40 | K49: 40 | L49: 40 | M49: 40 | N49: 40 | O49: 40 | P49: 40 | Q49: 40 | R49: 40 | S49: 0
C50: 114 | D50: Operating costs - other | E50: $mm const | G50: 0 | H50: 0 | I50: 6 | J50: 12 | K50: 12 | L50: 12 | M50: 12 | N50: 12 | O50: 12 | P50: 12 | Q50: 12 | R50: 12 | S50: 0
C51: 20 | D51: Decommissioning costs | E51: $mm const | G51: 0 | H51: 0 | I51: 0 | J51: 0 | K51: 0 | L51: 0 | M51: 0 | N51: 0 | O51: 0 | P51: 0 | Q51: 0 | R51: 0 | S51: 20
D53: Price assumptions
D54: Gold sales price | E54: $ const/ounce | G54: =$F$35 -> 1300 | H54: 1300 | I54: 1300 | J54: 1300 | K54: 1300 | L54: 1300 | M54: 1300 | N54: 1300 | O54: 1300 | P54: 1300 | Q54: 1300 | R54: 1300 | S54: 1300
D56: Project Pre-Tax Cash Flow: Real | E56: year | G56: 1 | H56: =G56+1 -> 2 | I56: =H56+1 -> 3 | J56: 4 | K56: 5 | L56: 6 | M56: 7 | N56: 8 | O56: 9 | P56: 10 | Q56: 11 | R56: 12 | S56: 13
C57: =SUM(G57:U57) -> 1900 | D57: Production gold | E57: 000 ounces | G57: =G41 -> 0 | H57: 0 | I57: 100 | J57: 200 | K57: 200 | L57: 200 | M57: 200 | N57: 200 | O57: 200 | P57: 200 | Q57: 200 | R57: 200 | S57: 0
C58: =SUM(G58:U58) -> 2470 | D58: Gross revenue | E58: $mm const | G58: =G57*G54/1000 -> 0 | H58: 0 | I58: 130 | J58: 260 | K58: 260 | L58: 260 | M58: 260 | N58: 260 | O58: 260 | P58: 260 | Q58: 260 | R58: 260 | S58: 0
C59: 142.5 | D59: Transport and processing post-fiscal point | E59: $mm const | G59: =G42+G43 -> 0 | H59: =H42+H43 -> 0 | I59: 7.5 | J59: 15 | K59: 15 | L59: 15 | M59: 15 | N59: 15 | O59: 15 | P59: 15 | Q59: 15 | R59: 15 | S59: 0
A60: =ROUND(C60-(C58-C59),5)=0 -> TRUE | C60: 2327.5 | D60: Net revenue | E60: $mm const | G60: =G58-G59 -> 0 | H60: =H58-H59 -> 0 | I60: 122.5 | J60: 245 | K60: 245 | L60: 245 | M60: 245 | N60: 245 | O60: 245 | P60: 245 | Q60: 245 | R60: 245 | S60: 0
C61: 10 | D61: Exploration costs (expensed) | E61: $mm const | G61: =G44 -> 10 | H61: 0 | I61: 0 | J61: 0 | K61: 0 | L61: 0 | M61: 0 | N61: 0 | O61: 0 | P61: 0 | Q61: 0 | R61: 0 | S61: 0
C62: 50 | D62: Development costs - intangibles (expensed) | E62: $mm const | G62: =G45 -> 10 | H62: 40 | I62: 0 | J62: 0 | K62: 0 | L62: 0 | M62: 0 | N62: 0 | O62: 0 | P62: 0 | Q62: 0 | R62: 0 | S62: 0
C63: 200 | D63: Development costs - tangibles (depreciable) | E63: $mm const | G63: =G46 -> 50 | H63: 150 | I63: 0 | J63: 0 | K63: 0 | L63: 0 | M63: 0 | N63: 0 | O63: 0 | P63: 0 | Q63: 0 | R63: 0 | S63: 0
C64: 50 | D64: Replacement capital costs (depreciable) | E64: $mm const | G64: =G47 -> 0 | H64: 0 | I64: 10 | J64: 10 | K64: 10 | L64: 10 | M64: 10 | N64: 0 | O64: 0 | P64: 0 | Q64: 0 | R64: 0 | S64: 0
C65: 874 | D65: Operating costs | E65: $mm const | G65: =SUM(G48:G50) -> 0 | H65: 0 | I65: 46 | J65: 92 | K65: 92 | L65: 92 | M65: 92 | N65: 92 | O65: 92 | P65: 92 | Q65: 92 | R65: 92 | S65: 0
C66: 20 | D66: Decommissioning costs | E66: $mm const | G66: =G51 -> 0 | H66: 0 | I66: 0 | J66: 0 | K66: 0 | L66: 0 | M66: 0 | N66: 0 | O66: 0 | P66: 0 | Q66: 0 | R66: 0 | S66: 20
C67: 1204 | D67: Total costs | E67: $mm const | G67: =SUM(G61:G66) -> 70 | H67: 190 | I67: 56 | J67: 102 | K67: 102 | L67: 102 | M67: 102 | N67: 92 | O67: 92 | P67: 92 | Q67: 92 | R67: 92 | S67: 20
A68: =ROUND(C68-(C60-SUM(C61:C66)),5)=0 -> TRUE | C68: 1123.5 | D68: Project pre-tax cash flows | E68: $mm const | G68: =G60-G67 -> -70 | H68: =H60-H67 -> -190 | I68: 66.5 | J68: 143 | K68: 143 | L68: 143 | M68: 143 | N68: 153 | O68: 153 | P68: 153 | Q68: 153 | R68: 153 | S68: -20
C70: =IFERROR(IRR($G68:U68),0) -> 0.4071436483 | D70: Internal rate of return (real) | E70: % | G70: =IFERROR(IRR($G68:G68),"--") -> -- | H70: =IFERROR(IRR($G68:H68),"--") -> -- | I70: =IFERROR(IRR($G68:I68),"--") -> -- | J70: =IFERROR(IRR($G68:J68),"--") -> -0.1046865282 | K70: =IFERROR(IRR($G68:K68),"--") -> 0.1314523999 | L70: =IFERROR(IRR($G68:L68),"--") -> 0.2484103225 | M70: =IFERROR(IRR($G68:M68),"--") -> 0.3124285516 | N70: =IFERROR(IRR($G68:N68),"--") -> 0.3522090605 | O70: =IFERROR(IRR($G68:O68),"--") -> 0.3763068089 | P70: =IFERROR(IRR($G68:P68),"--") -> 0.391464789 | Q70: =IFERROR(IRR($G68:Q68),"--") -> 0.4012629418 | R70: =IFERROR(IRR($G68:R68),"--") -> 0.4077260718 | S70: =IFERROR(IRR($G68:S68),"--") -> 0.4071436483
C71: =NPV($F$32,$H$68:$U$68)+$G$68 -> 507.8686972 | D71: ="Project pre-tax cash flows NPV"&$F$32*100 -> Project pre-tax cash flows NPV10 | E71: $mm const
D73: Flags
C74: =MAX(G74:U74) -> 13 | D74: Project years | E74: years | G74: =(SUM($G$41:G51)>0)*1+F74 -> 1 | H74: =(SUM($G$41:H51)>0)*1+G74 -> 2 | I74: =(SUM($G$41:I51)>0)*1+H74 -> 3 | J74: =(SUM($G$41:J51)>0)*1+I74 -> 4 | K74: =(SUM($G$41:K51)>0)*1+J74 -> 5 | L74: =(SUM($G$41:L51)>0)*1+K74 -> 6 | M74: =(SUM($G$41:M51)>0)*1+L74 -> 7 | N74: =(SUM($G$41:N51)>0)*1+M74 -> 8 | O74: =(SUM($G$41:O51)>0)*1+N74 -> 9 | P74: =(SUM($G$41:P51)>0)*1+O74 -> 10 | Q74: =(SUM($G$41:Q51)>0)*1+P74 -> 11 | R74: =(SUM($G$41:R51)>0)*1+Q74 -> 12 | S74: =(SUM($G$41:S51)>0)*1+R74 -> 13
C75: =MAX(G75:U75) -> 10 | D75: Production year | E75: years | G75: =((G41>0)*1+F75)*(G41>0) -> 0 | H75: 0 | I75: 1 | J75: 2 | K75: 3 | L75: 4 | M75: 5 | N75: 6 | O75: 7 | P75: 8 | Q75: 9 | R75: 10 | S75: 0
C76: =MAX(G76:U76) -> 10 | D76: Remaining production years | E76: years | G76: =($C$75-G75+1)*(G41>0) -> 0 | H76: 0 | I76: 10 | J76: 9 | K76: 8 | L76: 7 | M76: 6 | N76: 5 | O76: 4 | P76: 3 | Q76: 2 | R76: 1 | S76: 0
D78: Payback period
C79: =MAX(G79:U79) -> 153 | D79: Project pre-tax cash flow | E79: $mm const | G79: =G68 -> -70 | H79: =H68 -> -190 | I79: 66.5 | J79: 143 | K79: 143 | L79: 143 | M79: 143 | N79: 153 | O79: 153 | P79: 153 | Q79: 153 | R79: 153 | S79: -20
C80: 1143.5 | D80: Cumulative project pre-tax cash flow | E80: $mm const | G80: =G79+F80 -> -70 | H80: =H79+G80 -> -260 | I80: -193.5 | J80: -50.5 | K80: 92.5 | L80: 235.5 | M80: 378.5 | N80: 531.5 | O80: 684.5 | P80: 837.5 | Q80: 990.5 | R80: 1143.5 | S80: 1123.5
C81: 4.353146853 | D81: Payback period | E81: years | G81: =IF(AND(G80<=0,H80>0),G74+(-G80/H79),0) -> 0 | H81: =IF(AND(H80<=0,I80>0),H74+(-H80/I79),0) -> 0 | I81: 0 | J81: 4.353146853 | K81: 0 | L81: 0 | M81: 0 | N81: 0 | O81: 0 | P81: 0 | Q81: 0 | R81: 0 | S81: 0
D83: Inflation
D84: Inflation index | E84: index | G84: =IF(G$40=1,1,(1+$F$34)^(G$40-1)) -> 1 | H84: =IF(H$40=1,1,(1+$F$34)^(H$40-1)) -> 1.02 | I84: 1.0404 | J84: 1.061208 | K84: 1.08243216 | L84: 1.104080803 | M84: 1.126162419 | N84: 1.148685668 | O84: 1.171659381 | P84: 1.195092569 | Q84: 1.21899442 | R84: 1.243374308 | S84: 1.268241795
D86: Project Pre-Tax Cash Flow: Nominal | E86: year | G86: 1 | H86: =G86+1 -> 2 | I86: =H86+1 -> 3 | J86: 4 | K86: 5 | L86: 6 | M86: 7 | N86: 8 | O86: 9 | P86: 10 | Q86: 11 | R86: 12 | S86: 13
C87: =SUM(G87:U87) -> 2826.691329 | D87: Gross revenue | E87: $mm nominal | G87: =G58*G$84 -> 0 | H87: 0 | I87: 135.252 | J87: 275.91408 | K87: 281.4323616 | L87: 287.0610088 | M87: 292.802229 | N87: 298.6582736 | O87: 304.6314391 | P87: 310.7240678 | Q87: 316.9385492 | R87: 323.2773202 | S87: 0
C88: =SUM(G88:U88) -> 163.0783459 | D88: Transport and processing post-fiscal point | E88: $mm nominal | G88: =G59*G$84 -> 0 | H88: 0 | I88: 7.803 | J88: 15.91812 | K88: 16.2364824 | L88: 16.56121205 | M88: 16.89243629 | N88: 17.23028501 | O88: 17.57489072 | P88: 17.92638853 | Q88: 18.2849163 | R88: 18.65061463 | S88: 0
A89: =ROUND(C89-(C87-C88),5)=0 -> TRUE | C89: 2663.612983 | D89: Net revenue | E89: $mm nominal | G89: =G60*G$84 -> 0 | H89: 0 | I89: 127.449 | J89: 259.99596 | K89: 265.1958792 | L89: 270.4997968 | M89: 275.9097927 | N89: 281.4279886 | O89: 287.0565483 | P89: 292.7976793 | Q89: 298.6536329 | R89: 304.6267056 | S89: 0
C90: 10 | D90: Exploration costs (expensed) | E90: $mm nominal | G90: =G61*G$84 -> 10 | H90: 0 | I90: 0 | J90: 0 | K90: 0 | L90: 0 | M90: 0 | N90: 0 | O90: 0 | P90: 0 | Q90: 0 | R90: 0 | S90: 0
C91: 50.8 | D91: Development costs - intangibles (expensed) | E91: $mm nominal | G91: =G62*G$84 -> 10 | H91: 40.8 | I91: 0 | J91: 0 | K91: 0 | L91: 0 | M91: 0 | N91: 0 | O91: 0 | P91: 0 | Q91: 0 | R91: 0 | S91: 0
C92: 203 | D92: Development costs - tangibles (depreciable) | E92: $mm nominal | G92: =G63*G$84 -> 50 | H92: 153 | I92: 0 | J92: 0 | K92: 0 | L92: 0 | M92: 0 | N92: 0 | O92: 0 | P92: 0 | Q92: 0 | R92: 0 | S92: 0
C93: 54.14283382 | D93: Replacement capital costs (depreciable) | E93: $mm nominal | G93: =G64*G$84 -> 0 | H93: 0 | I93: 10.404 | J93: 10.61208 | K93: 10.8243216 | L93: 11.04080803 | M93: 11.26162419 | N93: 0 | O93: 0 | P93: 0 | Q93: 0 | R93: 0 | S93: 0
C94: 1000.213855 | D94: Operating costs | E94: $mm nominal | G94: =G65*G$84 -> 0 | H94: 0 | I94: 47.8584 | J94: 97.631136 | K94: 99.58375872 | L94: 101.5754339 | M94: 103.6069426 | N94: 105.6790814 | O94: 107.7926631 | P94: 109.9485163 | Q94: 112.1474866 | R94: 114.3904364 | S94: 0
C95: 25.36483589 | D95: Decommissioning costs | E95: $mm nominal | G95: =G66*G$84 -> 0 | H95: 0 | I95: 0 | J95: 0 | K95: 0 | L95: 0 | M95: 0 | N95: 0 | O95: 0 | P95: 0 | Q95: 0 | R95: 0 | S95: 25.36483589
C96: 1343.521525 | D96: Total costs | E96: $mm nominal | G96: =SUM(G90:G95) -> 70 | H96: =SUM(H90:H95) -> 193.8 | I96: 58.2624 | J96: 108.243216 | K96: 110.4080803 | L96: 112.6162419 | M96: 114.8685668 | N96: 105.6790814 | O96: 107.7926631 | P96: 109.9485163 | Q96: 112.1474866 | R96: 114.3904364 | S96: 25.36483589
A97: =ROUND(C97-(C89-SUM(C90:C95)),5)=0 -> TRUE | C97: 1320.091459 | D97: Project pre-tax cash flows | E97: $mm nominal | G97: =G89-G96 -> -70 | H97: =H89-H96 -> -193.8 | I97: 69.1866 | J97: 151.752744 | K97: 154.7877989 | L97: 157.8835549 | M97: 161.041226 | N97: 175.7489072 | O97: 179.2638853 | P97: 182.849163 | Q97: 186.5061463 | R97: 190.2362692 | S97: -25.36483589
C99: =IFERROR(IRR($G97:U97),0) -> 0.4352865213 | D99: Internal rate of return (nominal) | E99: % | G99: =IFERROR(IRR($G97:G97),"--") -> -- | H99: =IFERROR(IRR($G97:H97),"--") -> -- | I99: =IFERROR(IRR($G97:I97),"--") -> -- | J99: =IFERROR(IRR($G97:J97),"--") -> -0.08678025879 | K99: =IFERROR(IRR($G97:K97),"--") -> 0.1540814479 | L99: =IFERROR(IRR($G97:L97),"--") -> 0.2733785289 | M99: =IFERROR(IRR($G97:M97),"--") -> 0.3386771226 | N99: =IFERROR(IRR($G97:N97),"--") -> 0.3792532418 | O99: =IFERROR(IRR($G97:O97),"--") -> 0.4038329451 | P99: =IFERROR(IRR($G97:P97),"--") -> 0.4192940847 | Q99: =IFERROR(IRR($G97:Q97),"--") -> 0.4292882006 | R99: =IFERROR(IRR($G97:R97),"--") -> 0.4358805932 | S99: =IFERROR(IRR($G97:S97),"--") -> 0.4352865213
C100: =NPV($F$32,$H$97:$U$97)+$G$97 -> 601.5318866 | D100: ="Project pre-tax cash flows NPV"&$F$32*100 -> Project pre-tax cash flows NPV10 | E100: $mm nominal
A102: Fiscal Calculations
C104: Total | D104: Decommissioning
C105: =SUM(G105:S105) -> 13 | D105: Decommissioning year | E105: years | G105: =G40*(G106>0) -> 0 | H105: 0 | I105: 0 | J105: 0 | K105: 0 | L105: 0 | M105: 0 | N105: 0 | O105: 0 | P105: 0 | Q105: 0 | R105: 0 | S105: 13
C106: =SUM(G106:S106) -> 25.36483589 | D106: Decommissioning costs spent | E106: $mm nominal | G106: =G95 -> 0 | H106: =H95 -> 0 | I106: 0 | J106: 0 | K106: 0 | L106: 0 | M106: 0 | N106: 0 | O106: 0 | P106: 0 | Q106: 0 | R106: 0 | S106: 25.36483589
C107: 20 | D107: Decommissioning costs real terms | E107: $mm const | G107: =G106/G84 -> 0 | H107: 0 | I107: 0 | J107: 0 | K107: 0 | L107: 0 | M107: 0 | N107: 0 | O107: 0 | P107: 0 | Q107: 0 | R107: 0 | S107: 20
D108: Escalated decommissioning costs, end of year | E108: $mm nominal | G108: =$C$107*G84*(G40<=$C$105)*(1+$F$34) -> 20.4 | H108: 20.808 | I108: 21.22416 | J108: 21.6486432 | K108: 22.08161606 | L108: 22.52324839 | M108: 22.97371335 | N108: 23.43318762 | O108: 23.90185137 | P108: 24.3798884 | Q108: 24.86748617 | R108: 25.36483589 | S108: 25.87213261
D110: % reserves produced, end of year | E110: % | G110: =SUM($G$41:G41)/$C$41 -> 0 | H110: =SUM($G$41:H41)/$C$41 -> 0 | I110: =SUM($G$41:I41)/$C$41 -> 0.05263157895 | J110: =SUM($G$41:J41)/$C$41 -> 0.1578947368 | K110: =SUM($G$41:K41)/$C$41 -> 0.2631578947 | L110: =SUM($G$41:L41)/$C$41 -> 0.3684210526 | M110: =SUM($G$41:M41)/$C$41 -> 0.4736842105 | N110: =SUM($G$41:N41)/$C$41 -> 0.5789473684 | O110: =SUM($G$41:O41)/$C$41 -> 0.6842105263 | P110: =SUM($G$41:P41)/$C$41 -> 0.7894736842 | Q110: =SUM($G$41:Q41)/$C$41 -> 0.8947368421 | R110: =SUM($G$41:R41)/$C$41 -> 1 | S110: =SUM($G$41:S41)/$C$41 -> 1
D111: Remaining recoverable reserves, end of year | E111: 000 ounces | G111: =$C$41-SUM($G$41:G41) -> 1900 | H111: =$C$41-SUM($G$41:H41) -> 1900 | I111: =$C$41-SUM($G$41:I41) -> 1800 | J111: =$C$41-SUM($G$41:J41) -> 1600 | K111: =$C$41-SUM($G$41:K41) -> 1400 | L111: =$C$41-SUM($G$41:L41) -> 1200 | M111: =$C$41-SUM($G$41:M41) -> 1000 | N111: =$C$41-SUM($G$41:N41) -> 800 | O111: =$C$41-SUM($G$41:O41) -> 600 | P111: =$C$41-SUM($G$41:P41) -> 400 | Q111: =$C$41-SUM($G$41:Q41) -> 200 | R111: =$C$41-SUM($G$41:R41) -> 0 | S111: =$C$41-SUM($G$41:S41) -> 0
D112: Decommissioning fund flag | E112: flag | G112: =1*(G110>$F$12)*(G41>0) -> 0 | H112: 0 | I112: 0 | J112: 0 | K112: 0 | L112: 0 | M112: 0 | N112: 0 | O112: 1 | P112: 1 | Q112: 1 | R112: 1 | S112: 0
C113: =SUM(G113:S113) -> 800 | D113: Production during decommissioning period | E113: 000 ounces | G113: =G112*G41 -> 0 | H113: 0 | I113: 0 | J113: 0 | K113: 0 | L113: 0 | M113: 0 | N113: 0 | O113: 200 | P113: 200 | Q113: 200 | R113: 200 | S113: 0
C114: 2000 | D114: Cumulative production during decommissioning period | E114: 000 ounces | G114: =(G113+F114)*G112 -> 0 | H114: =(H113+G114)*H112 -> 0 | I114: 0 | J114: 0 | K114: 0 | L114: 0 | M114: 0 | N114: 0 | O114: 200 | P114: 400 | Q114: 600 | R114: 800 | S114: 0
C115: 61.93944886 | D115: Decommissioning fund opening balance | E115: $mm nominal | G115: =F119 -> 0 | H115: =G119 -> 0 | I115: 0 | J115: 0 | K115: 0 | L115: 0 | M115: 0 | N115: 0 | O115: 0 | P115: 5.975462843 | Q115: 12.11027136 | R115: 18.48887876 | S115: 25.36483589
C116: 25.36483589 | D116: Provision allowed current period | E116: $mm nominal | G116: =IF(G112<>0,(G108-G115)*IFERROR(G113/F111,1)*($F$11="yes"),0) -> 0 | H116: =IF(H112<>0,(H108-H115)*IFERROR(H113/G111,1)*($F$11="yes"),0) -> 0 | I116: 0 | J116: 0 | K116: 0 | L116: 0 | M116: 0 | N116: 0 | O116: 5.975462843 | P116: 6.134808519 | Q116: 6.378607403 | R116: 6.875957126 | S116: 0
C117: -25.36483589 | D117: Withdrawal to meet decommissioning costs | E117: $mm nominal | G117: =MIN(G106,F119)*-1 -> 0 | H117: =MIN(H106,G119)*-1 -> 0 | I117: 0 | J117: 0 | K117: 0 | L117: 0 | M117: 0 | N117: 0 | O117: 0 | P117: 0 | Q117: 0 | R117: 0 | S117: -25.36483589
C118: 0 | D118: Surplus balance | E118: $mm nominal | G118: =(G117<>0)*(G115+G117)*-1 -> 0 | H118: =(H117<>0)*(H115+H117)*-1 -> 0 | I118: 0 | J118: 0 | K118: 0 | L118: 0 | M118: 0 | N118: 0 | O118: 0 | P118: 0 | Q118: 0 | R118: 0 | S118: 0
D119: Closing balance | E119: $mm nominal | G119: =SUM(G115:G118) -> 0 | H119: =SUM(H115:H118) -> 0 | I119: 0 | J119: 0 | K119: 0 | L119: 0 | M119: 0 | N119: 0 | O119: 5.975462843 | P119: 12.11027136 | Q119: 18.48887876 | R119: 25.36483589 | S119: 0
D121: Royalty
C122: =SUM(G122:U122) -> 2826.691329 | D122: Gross revenue | E122: $mm nominal | G122: =G87 -> 0 | H122: =H87 -> 0 | I122: 135.252 | J122: 275.91408 | K122: 281.4323616 | L122: 287.0610088 | M122: 292.802229 | N122: 298.6582736 | O122: 304.6314391 | P122: 310.7240678 | Q122: 316.9385492 | R122: 323.2773202 | S122: 0
C123: =SUM(G123:U123) -> 2663.612983 | D123: Net revenue | E123: $mm nominal | G123: =G89 -> 0 | H123: =H89 -> 0 | I123: 127.449 | J123: 259.99596 | K123: 265.1958792 | L123: 270.4997968 | M123: 275.9097927 | N123: 281.4279886 | O123: 287.0565483 | P123: 292.7976793 | Q123: 298.6536329 | R123: 304.6267056 | S123: 0
C124: =SUM(G124:U124) -> 2663.612983 | D124: ="Royalty base: "&$F$10 &" revenue" -> Royalty base: net revenue | E124: $mm nominal | G124: =IF(G75=0,0,IF($F$10="gross",G122,G123)) -> 0 | H124: 0 | I124: 127.449 | J124: 259.99596 | K124: 265.1958792 | L124: 270.4997968 | M124: 275.9097927 | N124: 281.4279886 | O124: 287.0565483 | P124: 292.7976793 | Q124: 298.6536329 | R124: 304.6267056 | S124: 0
C125: =SUM(G125:U125) -> 133.1806492 | D125: Royalty payable | E125: $mm nominal | G125: =G124*$F$9 -> 0 | H125: 0 | I125: 6.37245 | J125: 12.999798 | K125: 13.25979396 | L125: 13.52498984 | M125: 13.79548964 | N125: 14.07139943 | O125: 14.35282742 | P125: 14.63988397 | Q125: 14.93268164 | R125: 15.23133528 | S125: 0
D127: Bonus
C128: =SUM(G128:U128) -> 0 | D128: Signature bonus | E128: $mm nominal | G128: =(G74=1)*$F$8 -> 0 | H128: =(H74=1)*$F$8 -> 0 | I128: 0 | J128: 0 | K128: 0 | L128: 0 | M128: 0 | N128: 0 | O128: 0 | P128: 0 | Q128: 0 | R128: 0 | S128: 0
D130: Project cash flow after decommissioning, royalty and bonus
C131: =SUM(G131:U131) -> 2530.432334 | D131: Net revenue after royalty | E131: $mm nominal | G131: =G89-G125 -> 0 | H131: 0 | I131: 121.07655 | J131: 246.996162 | K131: 251.9360852 | L131: 256.9748069 | M131: 262.1143031 | N131: 267.3565891 | O131: 272.7037209 | P131: 278.1577953 | Q131: 283.7209513 | R131: 289.3953703 | S131: 0
C132: 10 | D132: Exploration costs | E132: $mm nominal | G132: =G90 -> 10 | H132: =H90 -> 0 | I132: 0 | J132: 0 | K132: 0 | L132: 0 | M132: 0 | N132: 0 | O132: 0 | P132: 0 | Q132: 0 | R132: 0 | S132: 0
C133: 50.8 | D133: Development costs - intangibles (expensed) | E133: $mm nominal | G133: =G91 -> 10 | H133: 40.8 | I133: 0 | J133: 0 | K133: 0 | L133: 0 | M133: 0 | N133: 0 | O133: 0 | P133: 0 | Q133: 0 | R133: 0 | S133: 0
C134: 203 | D134: Development costs - tangibles (depreciable) | E134: $mm nominal | G134: 50 | H134: 153 | I134: 0 | J134: 0 | K134: 0 | L134: 0 | M134: 0 | N134: 0 | O134: 0 | P134: 0 | Q134: 0 | R134: 0 | S134: 0
C135: 54.14283382 | D135: Replacement capital costs (depreciable) | E135: $mm nominal | G135: 0 | H135: 0 | I135: 10.404 | J135: 10.61208 | K135: 10.8243216 | L135: 11.04080803 | M135: 11.26162419 | N135: 0 | O135: 0 | P135: 0 | Q135: 0 | R135: 0 | S135: 0
C136: 1000.213855 | D136: Operating costs | E136: $mm nominal | G136: 0 | H136: 0 | I136: 47.8584 | J136: 97.631136 | K136: 99.58375872 | L136: 101.5754339 | M136: 103.6069426 | N136: 105.6790814 | O136: 107.7926631 | P136: 109.9485163 | Q136: 112.1474866 | R136: 114.3904364 | S136: 0
C137: 25.36483589 | D137: Decommissioning costs/provision | E137: $mm nominal | G137: =G106+G116+G117+G118 -> 0 | H137: =H106+H116+H117+H118 -> 0 | I137: 0 | J137: 0 | K137: 0 | L137: 0 | M137: 0 | N137: 0 | O137: 5.975462843 | P137: 6.134808519 | Q137: 6.378607403 | R137: 6.875957126 | S137: 3.552713679e-15
C138: 0 | D138: Signature bonus | E138: $mm nominal | G138: =G128 -> 0 | H138: =H128 -> 0 | I138: 0 | J138: 0 | K138: 0 | L138: 0 | M138: 0 | N138: 0 | O138: 0 | P138: 0 | Q138: 0 | R138: 0 | S138: 0
C139: 1186.91081 | D139: Net cash flow | E139: $mm nominal | G139: =G131-SUM(G132:G138) -> -70 | H139: =H131-SUM(H132:H138) -> -193.8 | I139: 62.81415 | J139: 138.752946 | K139: 141.5280049 | L139: 144.358565 | M139: 147.2457363 | N139: 161.6775077 | O139: 158.935595 | P139: 162.0744705 | Q139: 165.1948572 | R139: 168.1289768 | S139: -3.552713679e-15
D141: Depreciation
D142: Depreciation switch | E142: flag | G142: =(MAX(G75:$S$75)>1)*1 -> 1 | H142: =(MAX(H75:$S$75)>1)*1 -> 1 | I142: =(MAX(I75:$S$75)>1)*1 -> 1 | J142: =(MAX(J75:$S$75)>1)*1 -> 1 | K142: =(MAX(K75:$S$75)>1)*1 -> 1 | L142: =(MAX(L75:$S$75)>1)*1 -> 1 | M142: =(MAX(M75:$S$75)>1)*1 -> 1 | N142: =(MAX(N75:$S$75)>1)*1 -> 1 | O142: =(MAX(O75:$S$75)>1)*1 -> 1 | P142: =(MAX(P75:$S$75)>1)*1 -> 1 | Q142: =(MAX(Q75:$S$75)>1)*1 -> 1 | R142: =(MAX(R75:$S$75)>1)*1 -> 1 | S142: =(MAX(S75:$S$75)>1)*1 -> 0
C144: =SUM(G144:U144) -> 10 | D144: Exploration costs | E144: $mm nominal | G144: =G132 -> 10 | H144: =H132 -> 0 | I144: 0 | J144: 0 | K144: 0 | L144: 0 | M144: 0 | N144: 0 | O144: 0 | P144: 0 | Q144: 0 | R144: 0 | S144: 0
C145: =SUM(G145:U145) -> 10 | D145: ="Expensing of exploration ("&$F$14&")" -> Expensing of exploration (deferred) | E145: $mm nominal | G145: =IF($F$14="immediate",G144,IF(G75=0,0,IF(G75=1,SUM($G$144:G144),G144))) -> 0 | H145: =IF($F$14="immediate",H144,IF(H75=0,0,IF(H75=1,SUM($G$144:H144),H144))) -> 0 | I145: =IF($F$14="immediate",I144,IF(I75=0,0,IF(I75=1,SUM($G$144:I144),I144))) -> 10 | J145: =IF($F$14="immediate",J144,IF(J75=0,0,IF(J75=1,SUM($G$144:J144),J144))) -> 0 | K145: =IF($F$14="immediate",K144,IF(K75=0,0,IF(K75=1,SUM($G$144:K144),K144))) -> 0 | L145: =IF($F$14="immediate",L144,IF(L75=0,0,IF(L75=1,SUM($G$144:L144),L144))) -> 0 | M145: =IF($F$14="immediate",M144,IF(M75=0,0,IF(M75=1,SUM($G$144:M144),M144))) -> 0 | N145: =IF($F$14="immediate",N144,IF(N75=0,0,IF(N75=1,SUM($G$144:N144),N144))) -> 0 | O145: =IF($F$14="immediate",O144,IF(O75=0,0,IF(O75=1,SUM($G$144:O144),O144))) -> 0 | P145: =IF($F$14="immediate",P144,IF(P75=0,0,IF(P75=1,SUM($G$144:P144),P144))) -> 0 | Q145: =IF($F$14="immediate",Q144,IF(Q75=0,0,IF(Q75=1,SUM($G$144:Q144),Q144))) -> 0 | R145: =IF($F$14="immediate",R144,IF(R75=0,0,IF(R75=1,SUM($G$144:R144),R144))) -> 0 | S145: =IF($F$14="immediate",S144,IF(S75=0,0,IF(S75=1,SUM($G$144:S144),S144))) -> 0
C147: =SUM(G147:U147) -> 50.8 | D147: Development costs - intangibles | E147: $mm nominal | G147: =G133 -> 10 | H147: =H133 -> 40.8 | I147: 0 | J147: 0 | K147: 0 | L147: 0 | M147: 0 | N147: 0 | O147: 0 | P147: 0 | Q147: 0 | R147: 0 | S147: 0
C148: =SUM(G148:U148) -> 50.8 | D148: ="Expensing of development costs - intangibles ("&$F$15&")" -> Expensing of development costs - intangibles (deferred) | E148: $mm nominal | G148: =IF($F$15="immediate",G147,IF(G75=0,0,IF(G75=1,SUM($G$147:G147),G147))) -> 0 | H148: =IF($F$15="immediate",H147,IF(H75=0,0,IF(H75=1,SUM($G$147:H147),H147))) -> 0 | I148: =IF($F$15="immediate",I147,IF(I75=0,0,IF(I75=1,SUM($G$147:I147),I147))) -> 50.8 | J148: =IF($F$15="immediate",J147,IF(J75=0,0,IF(J75=1,SUM($G$147:J147),J147))) -> 0 | K148: =IF($F$15="immediate",K147,IF(K75=0,0,IF(K75=1,SUM($G$147:K147),K147))) -> 0 | L148: =IF($F$15="immediate",L147,IF(L75=0,0,IF(L75=1,SUM($G$147:L147),L147))) -> 0 | M148: =IF($F$15="immediate",M147,IF(M75=0,0,IF(M75=1,SUM($G$147:M147),M147))) -> 0 | N148: =IF($F$15="immediate",N147,IF(N75=0,0,IF(N75=1,SUM($G$147:N147),N147))) -> 0 | O148: =IF($F$15="immediate",O147,IF(O75=0,0,IF(O75=1,SUM($G$147:O147),O147))) -> 0 | P148: =IF($F$15="immediate",P147,IF(P75=0,0,IF(P75=1,SUM($G$147:P147),P147))) -> 0 | Q148: =IF($F$15="immediate",Q147,IF(Q75=0,0,IF(Q75=1,SUM($G$147:Q147),Q147))) -> 0 | R148: =IF($F$15="immediate",R147,IF(R75=0,0,IF(R75=1,SUM($G$147:R147),R147))) -> 0 | S148: =IF($F$15="immediate",S147,IF(S75=0,0,IF(S75=1,SUM($G$147:S147),S147))) -> 0
C150: =SUM(G150:U150) -> 257.1428338 | D150: Development costs - tangibles and replacement capital costs | E150: $mm nominal | G150: =G134+G135 -> 50 | H150: =H134+H135 -> 153 | I150: 10.404 | J150: 10.61208 | K150: 10.8243216 | L150: 11.04080803 | M150: 11.26162419 | N150: 0 | O150: 0 | P150: 0 | Q150: 0 | R150: 0 | S150: 0
C151: =SUM(G151:U151) -> 257.1428338 | D151: ="Development costs - tangibles and replacement capital costs ("&$F$16&")" -> Development costs - tangibles and replacement capital costs (deferred) | E151: $mm nominal | G151: =IF($F$16="immediate",G150,IF(G75=0,0,IF(G75=1,SUM($G$150:G150),G150))) -> 0 | H151: =IF($F$16="immediate",H150,IF(H75=0,0,IF(H75=1,SUM($G$150:H150),H150))) -> 0 | I151: =IF($F$16="immediate",I150,IF(I75=0,0,IF(I75=1,SUM($G$150:I150),I150))) -> 213.404 | J151: =IF($F$16="immediate",J150,IF(J75=0,0,IF(J75=1,SUM($G$150:J150),J150))) -> 10.61208 | K151: =IF($F$16="immediate",K150,IF(K75=0,0,IF(K75=1,SUM($G$150:K150),K150))) -> 10.8243216 | L151: =IF($F$16="immediate",L150,IF(L75=0,0,IF(L75=1,SUM($G$150:L150),L150))) -> 11.04080803 | M151: =IF($F$16="immediate",M150,IF(M75=0,0,IF(M75=1,SUM($G$150:M150),M150))) -> 11.26162419 | N151: =IF($F$16="immediate",N150,IF(N75=0,0,IF(N75=1,SUM($G$150:N150),N150))) -> 0 | O151: =IF($F$16="immediate",O150,IF(O75=0,0,IF(O75=1,SUM($G$150:O150),O150))) -> 0 | P151: =IF($F$16="immediate",P150,IF(P75=0,0,IF(P75=1,SUM($G$150:P150),P150))) -> 0 | Q151: =IF($F$16="immediate",Q150,IF(Q75=0,0,IF(Q75=1,SUM($G$150:Q150),Q150))) -> 0 | R151: =IF($F$16="immediate",R150,IF(R75=0,0,IF(R75=1,SUM($G$150:R150),R150))) -> 0 | S151: =IF($F$16="immediate",S150,IF(S75=0,0,IF(S75=1,SUM($G$150:S150),S150))) -> 0
B152: =IF($F$17=0,0,1/$F$17) -> 0.2 | C152: 51.42856676 | D152: Depreciation year 1 | E152: $mm nominal | G152: =G$151*$B152*G$142 -> 0 | H152: =H$151*$B152*H$142 -> 0 | I152: 42.6808 | J152: 2.122416 | K152: 2.16486432 | L152: 2.208161606 | M152: 2.252324839 | N152: 0 | O152: 0 | P152: 0 | Q152: 0 | R152: 0 | S152: 0
B153: =IF($F$17=0,0,MIN(1/$F$17,1-SUM($B$152:B152))) -> 0.2 | C153: 51.42856676 | D153: Depreciation year 2 | E153: $mm nominal | H153: =G$151*$B153*H$142 -> 0 | I153: =H$151*$B153*I$142 -> 0 | J153: 42.6808 | K153: 2.122416 | L153: 2.16486432 | M153: 2.208161606 | N153: 2.252324839 | O153: 0 | P153: 0 | Q153: 0 | R153: 0 | S153: 0
B154: =IF($F$17=0,0,MIN(1/$F$17,1-SUM($B$152:B153))) -> 0.2 | C154: 51.42856676 | D154: Depreciation year 3 | E154: $mm nominal | I154: =G$151*$B154*I$142 -> 0 | J154: =H$151*$B154*J$142 -> 0 | K154: 42.6808 | L154: 2.122416 | M154: 2.16486432 | N154: 2.208161606 | O154: 2.252324839 | P154: 0 | Q154: 0 | R154: 0 | S154: 0
B155: =IF($F$17=0,0,MIN(1/$F$17,1-SUM($B$152:B154))) -> 0.2 | C155: 51.42856676 | D155: Depreciation year 4 | E155: $mm nominal | J155: =G$151*$B155*J$142 -> 0 | K155: =H$151*$B155*K$142 -> 0 | L155: 42.6808 | M155: 2.122416 | N155: 2.16486432 | O155: 2.208161606 | P155: 2.252324839 | Q155: 0 | R155: 0 | S155: 0
B156: =IF($F$17=0,0,MIN(1/$F$17,1-SUM($B$152:B155))) -> 0.2 | C156: 51.42856676 | D156: Depreciation year 5 | E156: $mm nominal | K156: =G$151*$B156*K$142 -> 0 | L156: =H$151*$B156*L$142 -> 0 | M156: 42.6808 | N156: 2.122416 | O156: 2.16486432 | P156: 2.208161606 | Q156: 2.252324839 | R156: 0 | S156: 0
B157: =IF($F$17=0,0,MIN(1/$F$17,1-SUM($B$152:B156))) -> 0 | C157: 0 | D157: Depreciation year 6 | E157: $mm nominal | L157: =G$151*$B157*L$142 -> 0 | M157: =H$151*$B157*M$142 -> 0 | N157: 0 | O157: 0 | P157: 0 | Q157: 0 | R157: 0 | S157: 0
B158: =IF($F$17=0,0,MIN(1/$F$17,1-SUM($B$152:B157))) -> 0 | C158: 0 | D158: Depreciation year 7 | E158: $mm nominal | M158: =G$151*$B158*M$142 -> 0 | N158: =H$151*$B158*N$142 -> 0 | O158: 0 | P158: 0 | Q158: 0 | R158: 0 | S158: 0
B159: =IF($F$17=0,0,MIN(1/$F$17,1-SUM($B$152:B158))) -> 0 | C159: 0 | D159: Depreciation year 8 | E159: $mm nominal | N159: =G$151*$B159*N$142 -> 0 | O159: =H$151*$B159*O$142 -> 0 | P159: 0 | Q159: 0 | R159: 0 | S159: 0
B160: =IF($F$17=0,0,MIN(1/$F$17,1-SUM($B$152:B159))) -> 0 | C160: 0 | D160: Depreciation year 9 | E160: $mm nominal | O160: =G$151*$B160*O$142 -> 0 | P160: =H$151*$B160*P$142 -> 0 | Q160: 0 | R160: 0 | S160: 0
B161: =IF($F$17=0,0,MIN(1/$F$17,1-SUM($B$152:B160))) -> 0 | C161: 0 | D161: Depreciation year 10 | E161: $mm nominal | P161: =G$151*$B161*P$142 -> 0 | Q161: =H$151*$B161*Q$142 -> 0 | R161: 0 | S161: 0
A162: =ROUND(C150-C162-C166,5)=0 -> TRUE | C162: 257.1428338 | D162: Capital costs - tangibles depreciation | E162: $mm nominal | G162: =SUM(G152:G161) -> 0 | H162: =SUM(H152:H161) -> 0 | I162: 42.6808 | J162: 44.803216 | K162: 46.96808032 | L162: 49.17624193 | M162: 51.42856676 | N162: 8.747766765 | O162: 6.625350765 | P162: 4.460486445 | Q162: 2.252324839 | R162: 0 | S162: 0
C164: =INDEX(G164:S164,,MATCH($C$75,$G$75:$S$75,0)) -> 257.1428338 | D164: Cumulative development - tangibles and replacement capital costs (depreciable) | E164: $mm nominal | G164: =(F164+G150+F166)*G142 -> 50 | H164: =(G164+H150+G166)*H142 -> 203 | I164: 213.404 | J164: 224.01608 | K164: 234.8404016 | L164: 245.8812096 | M164: 257.1428338 | N164: 257.1428338 | O164: 257.1428338 | P164: 257.1428338 | Q164: 257.1428338 | R164: 257.1428338 | S164: 0
C165: =INDEX(G165:S165,,MATCH($C$75,$G$75:$S$75,0)) -> 257.1428338 | D165: Cumulative depreciation | E165: $mm nominal | G165: =(F165+G162)*G142 -> 0 | H165: =(G165+H162)*H142 -> 0 | I165: 42.6808 | J165: 87.484016 | K165: 134.4520963 | L165: 183.6283382 | M165: 235.056905 | N165: 243.8046718 | O165: 250.4300225 | P165: 254.890509 | Q165: 257.1428338 | R165: 257.1428338 | S165: 0
A166: =ROUND(C164-C165-C166,5)=0 -> TRUE | C166: =SUM(G166:S166) -> 0 | D166: Undepreciated balance at the end of the project | E166: $mm nominal | G166: =(G164-G165)*(G76=1) -> 0 | H166: =(H164-H165)*(H76=1) -> 0 | I166: 0 | J166: 0 | K166: 0 | L166: 0 | M166: 0 | N166: 0 | O166: 0 | P166: 0 | Q166: 0 | R166: 0 | S166: 0
D168: Corporate Income Tax
C169: =SUM(G169:U169) -> 2663.612983 | D169: Net revenue | E169: $mm nominal | G169: =G89 -> 0 | H169: =H89 -> 0 | I169: 127.449 | J169: 259.99596 | K169: 265.1958792 | L169: 270.4997968 | M169: 275.9097927 | N169: 281.4279886 | O169: 287.0565483 | P169: 292.7976793 | Q169: 298.6536329 | R169: 304.6267056 | S169: 0
C170: =SUM(G170:U170) -> 133.1806492 | D170: Royalty | E170: $mm nominal | G170: =G125 -> 0 | H170: =H125 -> 0 | I170: 6.37245 | J170: 12.999798 | K170: 13.25979396 | L170: 13.52498984 | M170: 13.79548964 | N170: 14.07139943 | O170: 14.35282742 | P170: 14.63988397 | Q170: 14.93268164 | R170: 15.23133528 | S170: 0
C171: 0 | D171: Signature bonus | E171: $mm nominal | G171: =G128 -> 0 | H171: =H128 -> 0 | I171: 0 | J171: 0 | K171: 0 | L171: 0 | M171: 0 | N171: 0 | O171: 0 | P171: 0 | Q171: 0 | R171: 0 | S171: 0
C172: 10 | D172: Exploration costs (expensed) | E172: $mm nominal | G172: =G145 -> 0 | H172: =H145 -> 0 | I172: 10 | J172: 0 | K172: 0 | L172: 0 | M172: 0 | N172: 0 | O172: 0 | P172: 0 | Q172: 0 | R172: 0 | S172: 0
C173: 50.8 | D173: Development costs - intangibles (expensed) | E173: $mm nominal | G173: =G148 -> 0 | H173: =H148 -> 0 | I173: 50.8 | J173: 0 | K173: 0 | L173: 0 | M173: 0 | N173: 0 | O173: 0 | P173: 0 | Q173: 0 | R173: 0 | S173: 0
C174: 257.1428338 | D174: Development costs - tangibles and replacement capex (depreciation) | E174: $mm nominal | G174: =G162 -> 0 | H174: =H162 -> 0 | I174: 42.6808 | J174: 44.803216 | K174: 46.96808032 | L174: 49.17624193 | M174: 51.42856676 | N174: 8.747766765 | O174: 6.625350765 | P174: 4.460486445 | Q174: 2.252324839 | R174: 0 | S174: 0
C175: 1000.213855 | D175: Operating costs | E175: $mm nominal | G175: =G136 -> 0 | H175: =H136 -> 0 | I175: 47.8584 | J175: 97.631136 | K175: 99.58375872 | L175: 101.5754339 | M175: 103.6069426 | N175: 105.6790814 | O175: 107.7926631 | P175: 109.9485163 | Q175: 112.1474866 | R175: 114.3904364 | S175: 0
C176: 25.36483589 | D176: Decommissioning provision/costs | E176: $mm nominal | G176: =G137 -> 0 | H176: 0 | I176: 0 | J176: 0 | K176: 0 | L176: 0 | M176: 0 | N176: 0 | O176: 5.975462843 | P176: 6.134808519 | Q176: 6.378607403 | R176: 6.875957126 | S176: 3.552713679e-15
C177: 39.56850155 | D177: Interest payment | E177: $mm nominal | G177: =G187 -> 0 | H177: =H187 -> 0 | I177: 12.61386 | J177: 10.42479934 | K177: 8.080315369 | L177: 5.569373038 | M177: 2.880153802 | N177: 0 | O177: 0 | P177: 0 | Q177: 0 | R177: 0 | S177: 0
C178: 1147.342308 | D178: Taxable income before prior period losses | E178: $mm nominal | G178: =G169-SUM(G170:G177) -> 0 | H178: =H169-SUM(H170:H177) -> 0 | I178: -42.87651 | J178: 94.13701066 | K178: 97.30393083 | L178: 100.6537581 | M178: 104.1986399 | N178: 152.929741 | O178: 152.3102443 | P178: 157.6139841 | Q178: 162.9425324 | R178: 168.1289768 | S178: -3.552713679e-15
C179: -42.87651 | D179: Prior period losses carried forward | E179: $mm nominal | G179: =F180*(F180<0) -> 0 | H179: =G180*(G180<0) -> 0 | I179: 0 | J179: -42.87651 | K179: 0 | L179: 0 | M179: 0 | N179: 0 | O179: 0 | P179: 0 | Q179: 0 | R179: 0 | S179: 0
C180: 1104.465798 | D180: Taxable income after losses | E180: $mm nominal | G180: =SUM(G178:G179) -> 0 | H180: =SUM(H178:H179) -> 0 | I180: -42.87651 | J180: 51.26050066 | K180: 97.30393083 | L180: 100.6537581 | M180: 104.1986399 | N180: 152.929741 | O180: 152.3102443 | P180: 157.6139841 | Q180: 162.9425324 | R180: 168.1289768 | S180: -3.552713679e-15
C181: 344.2026924 | D181: CIT payable | E181: $mm nominal | G181: =G180*(G180>0)*$F$13 -> 0 | H181: 0 | I181: 0 | J181: 15.3781502 | K181: 29.19117925 | L181: 30.19612743 | M181: 31.25959198 | N181: 45.87892229 | O181: 45.69307328 | P181: 47.28419522 | Q181: 48.88275971 | R181: 50.43869303 | S181: 0
D183: Lender Cash Flow
C184: =SUM(G184:U184) -> 177.66 | D184: Financing during development | E184: $mm nominal | G184: =SUM(G133:G134)*$F$27*(G75=0) -> 42 | H184: 135.66 | I184: 0 | J184: 0 | K184: 0 | L184: 0 | M184: 0 | N184: 0 | O184: 0 | P184: 0 | Q184: 0 | R184: 0 | S184: 0
C185: =SUM(G185:U185) -> 217.2285015 | D185: Loan repayment | E185: $mm nominal | G185: =PMT(($F$29+1)*(1+$F$34)-1,$F$28,$C$184)*AND(G75>0,G75<=$F$28)*-1 -> 0 | H185: 0 | I185: 43.44570031 | J185: 43.44570031 | K185: 43.44570031 | L185: 43.44570031 | M185: 43.44570031 | N185: 0 | O185: 0 | P185: 0 | Q185: 0 | R185: 0 | S185: 0
C186: =SUM(G186:U186) -> 39.56850155 | D186: Lender net cash flow | E186: $mm nominal | G186: =G185-G184 -> -42 | H186: =H185-H184 -> -135.66 | I186: 43.44570031 | J186: 43.44570031 | K186: 43.44570031 | L186: 43.44570031 | M186: 43.44570031 | N186: 0 | O186: 0 | P186: 0 | Q186: 0 | R186: 0 | S186: 0
C187: =SUM(G187:U187) -> 39.56850155 | D187: Interest payment | E187: $mm nominal | G187: =IF(AND(G75>0,G75<=$F$28),-1*IPMT(($F$29+1)*(1+$F$34)-1,G75,$F$28,$C$184),0) -> 0 | H187: 0 | I187: 12.61386 | J187: 10.42479934 | K187: 8.080315369 | L187: 5.569373038 | M187: 2.880153802 | N187: 0 | O187: 0 | P187: 0 | Q187: 0 | R187: 0 | S187: 0
D189: Surcharge on Cash Flows
C190: =SUM(G190:U190) -> 1147.342308 | D190: Taxable income before losses for CIT purposes | E190: $mm nominal | G190: =G178 -> 0 | H190: =H178 -> 0 | I190: -42.87651 | J190: 94.13701066 | K190: 97.30393083 | L190: 100.6537581 | M190: 104.1986399 | N190: 152.929741 | O190: 152.3102443 | P190: 157.6139841 | Q190: 162.9425324 | R190: 168.1289768 | S190: -3.552713679e-15
C191: 39.56850155 | D191: (add back) interest deduction | E191: $mm nominal | G191: =G177 -> 0 | H191: =H177 -> 0 | I191: 12.61386 | J191: 10.42479934 | K191: 8.080315369 | L191: 5.569373038 | M191: 2.880153802 | N191: 0 | O191: 0 | P191: 0 | Q191: 0 | R191: 0 | S191: 0
C192: 257.1428338 | D192: (add back) depreciation deduction | E192: $mm nominal | G192: =G174 -> 0 | H192: =H174 -> 0 | I192: 42.6808 | J192: 44.803216 | K192: 46.96808032 | L192: 49.17624193 | M192: 51.42856676 | N192: 8.747766765 | O192: 6.625350765 | P192: 4.460486445 | Q192: 2.252324839 | R192: 0 | S192: 0
C193: 0 | D193: (add) proceeds from sale of undepreciated assets | E193: $mm nominal | G193: =G166 -> 0 | H193: =H166 -> 0 | I193: 0 | J193: 0 | K193: 0 | L193: 0 | M193: 0 | N193: 0 | O193: 0 | P193: 0 | Q193: 0 | R193: 0 | S193: 0
C194: -257.1428338 | D194: (deduct) depreciable capital expenditure | E194: $mm nominal | G194: =(G92+G93)*-1 -> -50 | H194: =(H92+H93)*-1 -> -153 | I194: -10.404 | J194: -10.61208 | K194: -10.8243216 | L194: -11.04080803 | M194: -11.26162419 | N194: 0 | O194: 0 | P194: 0 | Q194: 0 | R194: 0 | S194: 0
C195: 0 | D195: ="(deduct) CIT paid: "&IF($F$19="yes","yes","no") -> (deduct) CIT paid: no | E195: $mm nominal | G195: =G181*($F$19="yes")*-1 -> 0 | H195: =H181*($F$19="yes")*-1 -> 0 | I195: 0 | J195: 0 | K195: 0 | L195: 0 | M195: 0 | N195: 0 | O195: 0 | P195: 0 | Q195: 0 | R195: 0 | S195: 0
A196: =ROUND(C196+C125+C128-C166-C195,5)=ROUND(C97,5) -> TRUE | C196: 1186.91081 | D196: Adjusted taxable income before prior period losses | E196: $mm nominal | G196: =SUM(G190:G195) -> -50 | H196: =SUM(H190:H195) -> -153 | I196: 2.01415 | J196: 138.752946 | K196: 141.5280049 | L196: 144.358565 | M196: 147.2457363 | N196: 161.6775077 | O196: 158.935595 | P196: 162.0744705 | Q196: 165.1948572 | R196: 168.1289768 | S196: -3.552713679e-15
C197: -516.218754 | D197: Prior period adjusted losses | E197: $mm nominal | G197: =F198*(F198<0) -> 0 | H197: =G198*(G198<0) -> -50 | I197: -203 | J197: -200.98585 | K197: -62.232904 | L197: 0 | M197: 0 | N197: 0 | O197: 0 | P197: 0 | Q197: 0 | R197: 0 | S197: 0
C198: 670.6920555 | D198: Adjusted taxable income after prior period losses | E198: $mm nominal | G198: =SUM(G196:G197) -> -50 | H198: =SUM(H196:H197) -> -203 | I198: -200.98585 | J198: -62.232904 | K198: 79.29510092 | L198: 144.358565 | M198: 147.2457363 | N198: 161.6775077 | O198: 158.935595 | P198: 162.0744705 | Q198: 165.1948572 | R198: 168.1289768 | S198: -3.552713679e-15
C199: 0 | D199: Surcharge on Cash Flows payable | E199: $mm nominal | G199: =$F$18*G198*(G198>0) -> 0 | H199: 0 | I199: 0 | J199: 0 | K199: 0 | L199: 0 | M199: 0 | N199: 0 | O199: 0 | P199: 0 | Q199: 0 | R199: 0 | S199: 0
D201: Resource Rent Tax
C202: =SUM(G202:U202) -> -597.018754 | D202: RRT opening balance | E202: $mm nominal | G202: =F207*(F207<0) -> 0 | H202: =G207*(G207<0) -> -70 | I202: -263.8 | J202: -200.98585 | K202: -62.232904 | L202: 0 | M202: 0 | N202: 0 | O202: 0 | P202: 0 | Q202: 0 | R202: 0 | S202: 0
C203: 0 | D203: (add) uplift on negative balance | E203: $mm nominal | G203: =G202*$F$21 -> 0 | H203: 0 | I203: 0 | J203: 0 | K203: 0 | L203: 0 | M203: 0 | N203: 0 | O203: 0 | P203: 0 | Q203: 0 | R203: 0 | S203: 0
C204: 1186.91081 | D204: (add) project NCF after royalty, bonus and decommissioning | E204: $mm nominal | G204: =G139 -> -70 | H204: =H139 -> -193.8 | I204: 62.81415 | J204: 138.752946 | K204: 141.5280049 | L204: 144.358565 | M204: 147.2457363 | N204: 161.6775077 | O204: 158.935595 | P204: 162.0744705 | Q204: 165.1948572 | R204: 168.1289768 | S204: -3.552713679e-15
C205: =SUM(G205:U205) -> 0 | D205: (add) proceeds from sale of undepreciated assets | E205: $mm nominal | G205: =G166 -> 0 | H205: =H166 -> 0 | I205: 0 | J205: 0 | K205: 0 | L205: 0 | M205: 0 | N205: 0 | O205: 0 | P205: 0 | Q205: 0 | R205: 0 | S205: 0
C206: 0 | D206: ="(deduct) CIT paid: "&IF($F$22="yes","yes","no") -> (deduct) CIT paid: no | E206: $mm nominal | G206: =G181*($F$22="yes")*-1 -> 0 | H206: =H181*($F$22="yes")*-1 -> 0 | I206: 0 | J206: 0 | K206: 0 | L206: 0 | M206: 0 | N206: 0 | O206: 0 | P206: 0 | Q206: 0 | R206: 0 | S206: 0
C207: 589.8920555 | D207: RRT closing balance | E207: $mm nominal | G207: =SUM(G202:G206) -> -70 | H207: =SUM(H202:H206) -> -263.8 | I207: -200.98585 | J207: -62.232904 | K207: 79.29510092 | L207: 144.358565 | M207: 147.2457363 | N207: 161.6775077 | O207: 158.935595 | P207: 162.0744705 | Q207: 165.1948572 | R207: 168.1289768 | S207: -3.552713679e-15
C208: 0 | D208: Resource Rent Tax payable | E208: $mm nominal | G208: =G207*(G207>0)*$F$20 -> 0 | H208: 0 | I208: 0 | J208: 0 | K208: 0 | L208: 0 | M208: 0 | N208: 0 | O208: 0 | P208: 0 | Q208: 0 | R208: 0 | S208: 0
D209: Check
C210: =SUM(G210:U210) -> 1186.91081 | D210: NCF after royalty and CIT if deductible | E210: $mm nominal | G210: =G204+G206 -> -70 | H210: =H204+H206 -> -193.8 | I210: 62.81415 | J210: 138.752946 | K210: 141.5280049 | L210: 144.358565 | M210: 147.2457363 | N210: 161.6775077 | O210: 158.935595 | P210: 162.0744705 | Q210: 165.1948572 | R210: 168.1289768 | S210: -3.552713679e-15
D211: Cumulative IRR | E211: % | G211: =IFERROR(IRR($G$210:G210),0) -> 0 | H211: =IFERROR(IRR($G$210:H210),0) -> 0 | I211: =IFERROR(IRR($G$210:I210),0) -> 0 | J211: =IFERROR(IRR($G$210:J210),0) -> -0.1285737512 | K211: =IFERROR(IRR($G$210:K210),0) -> 0.1119742083 | L211: =IFERROR(IRR($G$210:L210),0) -> 0.2330945362 | M211: =IFERROR(IRR($G$210:M210),0) -> 0.3003496152 | N211: =IFERROR(IRR($G$210:N210),0) -> 0.3429312452 | O211: =IFERROR(IRR($G$210:O210),0) -> 0.368168224 | P211: =IFERROR(IRR($G$210:P210),0) -> 0.3843289916 | Q211: =IFERROR(IRR($G$210:Q210),0) -> 0.3949516256 | R211: =IFERROR(IRR($G$210:R210),0) -> 0.4020663694 | S211: =IFERROR(IRR($G$210:S210),0) -> 0.4020663694
D213: Dividend Withholding Tax and Government Equity
C214: =SUM(G214:U214) -> 1186.91081 | D214: Project NCF after royalty, bonus and decommissioning | E214: $mm nominal | G214: =G139 -> -70 | H214: -193.8 | I214: 62.81415 | J214: 138.752946 | K214: 141.5280049 | L214: 144.358565 | M214: 147.2457363 | N214: 161.6775077 | O214: 158.935595 | P214: 162.0744705 | Q214: 165.1948572 | R214: 168.1289768 | S214: -3.552713679e-15
C215: =SUM(G215:U215) -> 0 | D215: Proceeds from the sale of undepreciated assets | E215: $mm nominal | G215: =G166 -> 0 | H215: =H166 -> 0 | I215: 0 | J215: 0 | K215: 0 | L215: 0 | M215: 0 | N215: 0 | O215: 0 | P215: 0 | Q215: 0 | R215: 0 | S215: 0
C216: =SUM(G216:U216) -> 39.56850155 | D216: Lender net cash flows | E216: $mm nominal | G216: =G186 -> -42 | H216: -135.66 | I216: 43.44570031 | J216: 43.44570031 | K216: 43.44570031 | L216: 43.44570031 | M216: 43.44570031 | N216: 0 | O216: 0 | P216: 0 | Q216: 0 | R216: 0 | S216: 0
C217: 344.2026924 | D217: Corporate Income Tax | E217: $mm nominal | G217: =G181 -> 0 | H217: =H181 -> 0 | I217: 0 | J217: 15.3781502 | K217: 29.19117925 | L217: 30.19612743 | M217: 31.25959198 | N217: 45.87892229 | O217: 45.69307328 | P217: 47.28419522 | Q217: 48.88275971 | R217: 50.43869303 | S217: 0
C218: 0 | D218: Surcharge on Cash Flows | E218: $mm nominal | G218: =G199 -> 0 | H218: =H199 -> 0 | I218: 0 | J218: 0 | K218: 0 | L218: 0 | M218: 0 | N218: 0 | O218: 0 | P218: 0 | Q218: 0 | R218: 0 | S218: 0
C219: 0 | D219: Resource Rent Tax | E219: $mm nominal | G219: =G208 -> 0 | H219: =H208 -> 0 | I219: 0 | J219: 0 | K219: 0 | L219: 0 | M219: 0 | N219: 0 | O219: 0 | P219: 0 | Q219: 0 | R219: 0 | S219: 0
C220: 803.1396156 | D220: Contractor cash flow before distributions | E220: $mm nominal | G220: =G214+G215-SUM(G216:G219) -> -28 | H220: =H214+H215-SUM(H216:H219) -> -58.14 | I220: 19.36844969 | J220: 79.92909549 | K220: 68.89112536 | L220: 70.71673728 | M220: 72.54044403 | N220: 115.7985854 | O220: 113.2425218 | P220: 114.7902753 | Q220: 116.3120975 | R220: 117.6902837 | S220: -3.552713679e-15
C221: 3948.683119 | D221: Cumulative contractor cash flow before distributions | E221: $mm nominal | G221: =SUM($G$220:G220) -> -28 | H221: =SUM($G$220:H220) -> -86.14 | I221: =SUM($G$220:I220) -> -66.77155031 | J221: =SUM($G$220:J220) -> 13.15754518 | K221: =SUM($G$220:K220) -> 82.04867054 | L221: =SUM($G$220:L220) -> 152.7654078 | M221: =SUM($G$220:M220) -> 225.3058519 | N221: =SUM($G$220:N220) -> 341.1044373 | O221: =SUM($G$220:O220) -> 454.346959 | P221: =SUM($G$220:P220) -> 569.1372343 | Q221: =SUM($G$220:Q220) -> 685.4493318 | R221: =SUM($G$220:R220) -> 803.1396156 | S221: =SUM($G$220:S220) -> 803.1396156
C223: =SUM(G223:U223) -> 803.1396156 | D223: Distributable cash | E223: $mm nominal | G223: =IF(G221<0,0,MAX(0,MIN(G221,G220))) -> 0 | H223: =IF(H221<0,0,MAX(0,MIN(H221,H220))) -> 0 | I223: 0 | J223: 13.15754518 | K223: 68.89112536 | L223: 70.71673728 | M223: 72.54044403 | N223: 115.7985854 | O223: 113.2425218 | P223: 114.7902753 | Q223: 116.3120975 | R223: 117.6902837 | S223: 0
C224: 80.31396156 | D224: State participation | E224: $mm nominal | G224: =G$223*$F$24*(G223>0) -> 0 | H224: 0 | I224: 0 | J224: 1.315754518 | K224: 6.889112536 | L224: 7.071673728 | M224: 7.254044403 | N224: 11.57985854 | O224: 11.32425218 | P224: 11.47902753 | Q224: 11.63120975 | R224: 11.76902837 | S224: 0
C225: 722.825654 | D225: Dividend payment | E225: $mm nominal | G225: =G223-G224 -> 0 | H225: =H223-H224 -> 0 | I225: 0 | J225: 11.84179066 | K225: 62.00201283 | L225: 63.64506355 | M225: 65.28639962 | N225: 104.2187269 | O225: 101.9182696 | P225: 103.3112478 | Q225: 104.6808877 | R225: 105.9212554 | S225: 0
C226: 108.4238481 | D226: Dividend Withholding Tax | E226: $mm nominal | G226: =G225*$F$23 -> 0 | H226: 0 | I226: 0 | J226: 1.7762686 | K226: 9.300301924 | L226: 9.546759533 | M226: 9.792959944 | N226: 15.63280903 | O226: 15.28774044 | P226: 15.49668716 | Q226: 15.70213316 | R226: 15.88818831 | S226: 0
C228: =SUM(G228:U228) -> 614.4018059 | D228: Contractor NCF after DWT and state participation | E228: $mm nominal | G228: =G220-G226-G224 -> -28 | H228: -58.14 | I228: 19.36844969 | J228: 76.83707237 | K228: 52.7017109 | L228: 54.09830402 | M228: 55.49343968 | N228: 88.58591786 | O228: 86.63052914 | P228: 87.8145606 | Q228: 88.97875459 | R228: 90.03306707 | S228: -3.552713679e-15
D230: Results | E230: year | G230: 1 | H230: =G230+1 -> 2 | I230: 3 | J230: 4 | K230: 5 | L230: 6 | M230: 7 | N230: 8 | O230: 9 | P230: 10 | Q230: 11 | R230: 12 | S230: 13
C232: Total | D232: Contractor Net Cash Flow: Nominal
C233: =SUM(G233:U233) -> 1186.91081 | D233: Project NCF after royalty, bonus and decommissioning | E233: $mm nominal | G233: =G139 -> -70 | H233: =H139 -> -193.8 | I233: 62.81415 | J233: 138.752946 | K233: 141.5280049 | L233: 144.358565 | M233: 147.2457363 | N233: 161.6775077 | O233: 158.935595 | P233: 162.0744705 | Q233: 165.1948572 | R233: 168.1289768 | S233: -3.552713679e-15
... 173 more rows
